Workbook

Sheet 附件1（汇总表）
A1: 附件1
A3: 大冶市2025年巩固拓展脱贫攻坚成果和 乡村振兴项目库汇总表
J5: 单位：万元
A6: 序号 | B6: 乡镇 | C6: 项目 个数 | D6: 预算总投资 | E6: 项目类型
E7: 产业发展 | G7: 乡村建设行动 | I7: 其他
E8: 个数 | F8: 金额 | G8: 个数 | H8: 金额 | I8: 个数 | J8: 金额
A9: 合计 | C9: =SUM(C10:C24) -> 152 | D9: 35253.73 | E9: 83 | F9: 13494.71 | G9: 64 | H9: 14290.16 | I9: 5 | J9: 7468.86
A10: 1 | B10: 保安镇 | C10: =E10+G10+I10 -> 11 | D10: =F10+H10+J10 -> 833 | E10: 4 | F10: 414.5 | G10: 7 | H10: 418.5
A11: 2 | B11: 陈贵镇 | C11: 1 | D11: 60 | E11: 1 | F11: 60
A12: 3 | B12: 大箕铺镇 | C12: 11 | D12: 1183 | E12: 6 | F12: 872 | G12: 5 | H12: 311
A13: 4 | B13: 东风农场管理区 | C13: 1 | D13: 68 | E13: 1 | F13: 68
A14: 5 | B14: 还地桥镇 | C14: 1 | D14: 60 | E14: 1 | F14: 60
A15: 6 | B15: 金湖街道 | C15: 4 | D15: 308 | E15: 4 | F15: 308
A16: 7 | B16: 金牛镇 | C16: 7 | D16: 1675.64 | E16: 5 | F16: 1480 | G16: 2 | H16: 195.64
A17: 8 | B17: 金山店镇 | C17: 10 | D17: 576 | E17: 7 | F17: 400 | G17: 2 | H17: 160 | I17: 1 | J17: 16
A18: 9 | B18: 灵乡镇 | C18: 4 | D18: 260 | E18: 3 | F18: 240 | G18: 1 | H18: 20
A19: 10 | B19: 刘仁八镇 | C19: 17 | D19: 1771.79 | E19: 5 | F19: 877.5 | G19: 12 | H19: 894.29
A20: 11 | B20: 罗家桥街道 | C20: 1 | D20: 80 | E20: 1 | F20: 80
A21: 12 | B21: 茗山乡 | C21: 15 | D21: 707.6 | E21: 10 | F21: 519.6 | G21: 5 | H21: 188
A22: 13 | B22: 汪仁镇,金山街办事处 | C22: 8 | D22: 2016.3 | E22: 1 | F22: 62 | G22: 7 | H22: 1954.3
A23: 14 | B23: 殷祖镇 | C23: 28 | D23: 2571.5 | E23: 13 | F23: 1970 | G23: 15 | H23: 601.5
A24: 15 | B24: 大冶市行业部门 | C24: 33 | D24: 23082.9 | E24: 21 | F24: 6083.11 | G24: 8 | H24: 9546.93 | I24: 4 | J24: 7452.86

Sheet 明细表
A1: 附件
A2: 大冶市2025年巩固拓展脱贫攻坚成果和乡村振兴项目库明细表
A3: 序号 | B3: 项目建设地点 | D3: 项目名称 | E3: 项目类型 | F3: 二级项目类型 | G3: 项目子类型 | H3: 项目建设内容及补助标准 | I3: 项目预算总投资 | J3: 项目规划年度 | K3: 项目归属 | M3: 是否脱贫村提升工程 | N3: 是否增加村集体经济收入 | O3: 是否资产收益 | P3: 群众参与和利益联结机制 | Q3: 年度总体目标 | R3: 项目受益总人口数 | S3: 其中直接受益人口数 | T3: 项目主管单位 | U3: 项目负责人 | V3: 联系电话 | W3: 备注
B4: 乡镇 | C4: 村 | K4: 解决"两不愁三保障"项目 | L4: 巩固提升类项目
I5: =SUM(I23+I28+I57+I68+I80+I96+I104+I116+I118+I120+I122+I127+I129+I138+I172) -> 35253.72999 | R5: =SUM(R23+R28+R57+R68+R80+R96+R104+R116+R118+R120+R122+R127+R129+R138+R172) -> 476576 | S5: =SUM(S23+S28+S57+S68+S80+S96+S104+S116+S118+S120+S122+S127+S129+S138+S172) -> 324918
A6: 1 | B6: 刘仁八镇 | D6: 刘仁八镇发展栀子黄产业项目 | E6: 产业发展 | F6: 生产项目 | G6: 种植业基地 | H6: 大段村种植栀子黄150亩；岩山村种植栀子黄236亩；腰村村种植栀子黄200亩；刘仁八村种植栀子黄40亩；下纪村产业基地安装喷灌设备；大庄村建设智能水肥一体化及配套设施。 | I6: 424 | J6: 2025 | K6: 否 | L6: 是 | M6: 是 | N6: 是 | O6: 是 | P6: 土地流转、就业务工、带动生产 | Q6: 带动脱贫户务工增收，增加村集体经济收入 | R6: 5780 | S6: 1712 | T6: 市卫健局 | U6: 伍清华 | V6: 13617215369
A7: 2 | B7: 刘仁八镇 | D7: 刘仁八镇安全饮水工程项目 | E7: 乡村建设行动 | F7: 农村基础设施（含产业配套基础设施） | G7: 农村供水保障设施建设 | H7: 腰村村山岭下湾深挖机井，购买大功率抽水泵，建设过滤池，管道铺设及配套设施；大庄村大庄屋湾及吴安二湾打机井；上纪村上邓湾安装20立方组合型蓄水池（不锈钢）及PE50自来水管200米、邹家湾建设30立方蓄水池及PE50自来水管500米；刘文武村原中刘湾小学建设20平方米加压站一处；郑沟村山背罗湾拦水坝片石护砌40米，高3米，宽1米，清淤30m³、胡十六湾水井片石护砌100米，高4米，宽0.8米，清淤50m³，井面硬化30m³、里门湾水井片石护砌80米，高3米，宽1米，清淤40m³，井面硬化15m³；下纪村下纪铺湾、王家洞湾、北刘湾机井、管道铺设及配套设施 | I7: 191 | J7: 2025 | K7: 否 | L7: 是 | M7: 是 | N7: 否 | O7: 否 | P7: 改善群众饮水安全问题 | Q7: 解决季节性缺水，保障群众生活生产用水 | R7: 3146 | S7: 3019 | T7: 市水利和湖泊局 | U7: 伍清华 | V7: 13617215369
A8: 3 | B8: 刘仁八镇 | D8: 刘仁八镇发展白茶产业项目 | E8: 乡村建设行动 | F8: 农村基础设施（含产业配套基础设施） | G8: 产业路、资源路、旅游路建设 | H8: 大段村茶产业路硬化约1000米，铺设约300米U型槽；郑沟村白茶基地配套设施产业路硬化1000米；东山村白茶基地配套设施产业路硬化1500米；刘桥村白茶基地配套设施产业路硬化750米，铺设约300米U型槽；上纪村栀子黄及白茶基地新建产业路硬化1800米，新建道路U水槽排水沟3600米，土地平整2000米。 | I8: 382 | J8: 2025 | K8: 否 | L8: 是 | M8: 是 | N8: 否 | O8: 否 | P8: 土地流转、就业务工、带动生产 | Q8: 改善产业基地生产条件及务工人员出行，白茶运输，带动脱贫户务工增收，增加村集体经济收入 | R8: 5000 | S8: 930 | T8: 市农业农村局 、市茶办 | U8: 伍清华 | V8: 13617215369
A9: 4 | B9: 刘仁八镇 | C9: 大段村 | D9: 刘仁八镇大段村上周湾道路拓宽护砌硬化工程 | E9: 乡村建设行动 | F9: 农村基础设施（含产业配套基础设施） | G9: 农村道路建设（通村路、通户路、小型桥梁等） | H9: 大段村上周湾道路拓宽、护砌、硬化 | I9: 15 | J9: 2025 | K9: 否 | L9: 是 | M9: 否 | N9: 否 | O9: 否 | P9: 保障群众出行安全 | Q9: 方便大段村村民（尤其是上周湾村民）出行 | R9: 1498 | S9: 200 | T9: 市交通运输局 | U9: 万亚波 | V9: 15871215810
A10: 5 | B10: 刘仁八镇 | C10: 陈如海村 | D10: 刘仁八镇陈如海村石头坑护砌项目 | E10: 乡村建设行动 | F10: 农村基础设施（含产业配套基础设施） | G10: 其他 | H10: 石头坑护砌长35米，高度1.5米，宽度0.8米 | I10: 1.89 | J10: 2025 | K10: 否 | L10: 是 | M10: 是 | N10: 否 | O10: 否 | P10: 保障群众出行安全 | Q10: 保障出行安全 | R10: 460 | S10: 460 | T10: 市农业农村局 | U10: 肖其华 | V10: 13367146088
A11: 6 | B11: 刘仁八镇 | C11: 八角亭村 | D11: 刘仁八镇八角亭村四甲湾门口畈沟渠清淤项目 | E11: 产业发展 | F11: 配套设施项目 | G11: 小型农田水利设施建设 | H11: 沟渠清淤400米 | I11: 5 | J11: 2025 | K11: 否 | L11: 是 | M11: 是 | N11: 否 | O11: 否 | P11: 改善生产条件 | Q11: 完善沟渠排灌功能，保障农田灌溉 | R11: 100 | S11: 50 | T11: 市农业农村局 | U11: 郑传雄 | V11: 13995957453
A12: 7 | B12: 刘仁八镇 | C12: 金柯村 | D12: 刘仁八镇金柯辣椒产业园建设 | E12: 产业发展 | F12: 加工流通项目 | G12: 加工业 | H12: 三层楼标准化生产车间 | I12: 350 | J12: 2025 | K12: 否 | L12: 否 | M12: 否 | N12: 是 | O12: 是 | P12: 改善村民 生产安全及生产环境 | Q12: 提高村民收 入及提高村集体收入 | R12: 620 | S12: 620 | T12: 市商务局、市农业农村局 | U12: 柯加生 | V12: 13872060484
A13: 8 | B13: 刘仁八镇 | C13: 金柯村 | D13: 刘仁八镇金柯村门口山产业路建设 | E13: 乡村建设行动 | F13: 农村基础设施（含产业配套基础设施） | G13: 产业路、资源路、旅游路建设 | H13: 长300米、宽3.5米硬化 | I13: 16.4 | J13: 2025 | K13: 否 | L13: 否 | M13: 否 | N13: 否 | O13: 否 | P13: 改善产业生产条件 | Q13: 提高村民生产质量 | R13: 220 | S13: 220 | T13: 市交通运输局 | U13: 柯加生 | V13: 13872060484
A14: 9 | B14: 刘仁八镇 | C14: 腰村村 | D14: 刘仁八镇腰村村周铭湾新建大港拦水坝 | E14: 产业发展 | F14: 配套设施项目 | G14: 小型农田水利设施建设 | H14: 周铭湾大港新建拦水坝，混凝土块石建筑宽3.5米，高1.8米拦水坝 | I14: 18.5 | J14: 2025 | K14: 否 | L14: 是 | M14: 是 | N14: 否 | O14: 否 | P14: 改善农田水利灌溉 | Q14: 改善农田水利灌溉 | R14: 800 | S14: 500 | T14: 市农业农村局 | U14: 郑俊 | V14: 15997132516
A15: 10 | B15: 刘仁八镇 | C15: 刘桥村 | D15: 刘仁八镇刘桥村黄清湾门口塘护砌及清理淤泥 | E15: 乡村建设行动 | F15: 农村基础设施（含产业配套基础设施） | G15: 其他 | H15: 石头坑护砌700米，高1.5米，宽800米，清淤100m³。 | I15: 78 | J15: 2025 | K15: 否 | L15: 是 | M15: 否 | N15: 否 | O15: 否 | P15: 保障农田灌溉，劳动生产等 | Q15: 改善村庄环境 | R15: 2228 | S15: 280 | T15: 市农业农村局 | U15: 刘文华 | V15: 13477755331
A16: 11 | B16: 刘仁八镇 | C16: 刘文武村 | D16: 刘仁八镇刘文武村背家洪水库泵房建设项目 | E16: 乡村建设行动 | F16: 农村基础设施（含产业配套基础设施） | G16: 其他 | H16: 20平方米泵房一处 | I16: 6 | J16: 2025 | K16: 否 | L16: 是 | M16: 否 | N16: 否 | O16: 否 | P16: 保障农田灌溉，劳动生产等 | Q16: 灌溉农田280亩，增产增收 | R16: 1636 | S16: 880 | T16: 市水利和湖泊局 | U16: 刘欲晓 | V16: 13886468108
A17: 12 | B17: 刘仁八镇 | C17: 东面垅村 | D17: 刘仁八镇东面垅村下刘湾排水口、门口塘及公路整治工程 | E17: 乡村建设行动 | F17: 农村基础设施（含产业配套基础设施） | G17: 其他 | H17: 石头坑护砌200米，高3米，宽1米，排水口水泥护砌150m³、清淤100m³路面硬化100米 | I17: 70 | J17: 2025 | K17: 否 | L17: 是 | M17: 否 | N17: 否 | O17: 否 | P17: 保障全村汛期生活安全、劳动生产、农户出行等 | Q17: 带动农生产增收 | R17: 1653 | S17: 1653 | T17: 市农业农村局 | U17: 郑世财 | V17: 13597733745
A18: 13 | B18: 刘仁八镇 | C18: 上纪村 | D18: 刘仁八镇上纪村北山熊湾污水改造项目 | E18: 乡村建设行动 | F18: 人居环境整治 | G18: 村容村貌提升 | H18: 大四格化粪池1座（40立方米）、污水井10座（直径700*700）、400米污水管道、10户农户旱厕改造水冲式厕所 | I18: 34 | J18: 2025 | K18: 否 | L18: 是 | M18: 是 | N18: 否 | O18: 否 | P18: 减少污染物排放，改善水质 | Q18: 改善群众生活水平、提升北山熊湾人居环境 | R18: 84 | S18: 28 | T18: 市农业农村局 | U18: 刘竹清 | V18: 15172098316
A19: 14 | B19: 刘仁八镇 | C19: 陈如海村 | D19: 刘仁八镇陈如海村小学至云台中学路面硬化 | E19: 乡村建设行动 | F19: 农村基础设施（含产业配套基础设施） | G19: 农村道路建设（通村路、通户路、小型桥梁等） | H19: 路面硬化长度800米，宽度5米，厚度0.2米 | I19: 50 | J19: 2025 | K19: 否 | L19: 是 | M19: 是 | N19: 否 | O19: 否 | P19: 保障出行安全 | Q19: 完成路面硬化 | R19: 2000 | S19: 2000 | T19: 市交通运输局 | U19: 肖其华 | V19: 13367146088
A20: 15 | B20: 刘仁八镇 | C20: 金柯村 | D20: 刘仁八镇金柯村公共厕所建设项目 | E20: 乡村建设行动 | F20: 人居环境整治 | G20: 农村卫生厕所改造（户用、公共厕所） | H20: 建设一个长9米、宽6米标准规范公厕 | I20: 15 | J20: 2025 | K20: 否 | L20: 是 | M20: 否 | N20: 否 | O20: 否 | P20: 提升村容村貌，美化村庄环境 | Q20: 村民方便和环境卫生安全及美化村容村貌 | R20: 720 | S20: 460 | T20: 市农业农村局 | U20: 柯加生 | V20: 13872060484
A21: 16 | B21: 刘仁八镇 | C21: 大董村 | D21: 刘仁八镇大董村翠冠梨基地抗旱配套设施项目 | E21: 乡村建设行动 | F21: 农村基础设施（含产业配套基础设施） | G21: 其他 | H21: 抗旱水塘护砌、泵房、喷灌配套设施 | I21: 35 | J21: 2025 | K21: 否 | L21: 是 | M21: 是 | N21: 否 | O21: 否 | P21: 土地流转、务工就业等 | Q21: 流转36户土地50亩，每亩流转收益260元，村集体年增收5万元，带动脱贫户20人增收 | R21: 3136 | S21: 80 | T21: 市农业农村局 | U21: 万大造 | V21: 13597615655
A22: 17 | B22: 刘仁八镇 | C22: 大段村 | D22: 刘仁八镇大段村连栋钢管大棚项目 | E22: 产业发展 | F22: 新型农村集体经济发展项目 | G22: 新型农村集体经济发展项目 | H22: 新建连栋大棚16亩，种植火龙果、加强绿色防控基础设施等。 | I22: 80 | J22: 2025 | K22: 否 | L22: 是 | M22: 否 | N22: 是 | O22: 是 | P22: 通过带动务工和土地流转方式，实现脱贫户及村民增加经济收入。 | Q22: 预期收益10年，预计每年增加村集体经济收入约5万元 | R22: 1480 | S22: 47 | T22: 市委组织部、市财政局、市农业农村局 | U22: 纪柏定 | V22: 18064188512
A23: 小计 | C23: 1 | I23: =SUM(I6:I22) -> 1771.79 | R23: =SUM(R6:R22) -> 30561 | S23: =SUM(S6:S22) -> 13139
A24: 18 | B24: 灵乡镇 | C24: 子山村 | D24: 灵乡镇子山村水产养殖项目 | E24: 产业发展 | F24: 新型农村集体经济发展项目 | G24: 新型农村集体经济发展项目 | H24: 新建20亩标准化网箱鳝鱼养殖基地，购买鳝鱼苗等。 | I24: 80 | J24: 2025 | K24: 否 | L24: 是 | M24: 否 | N24: 是 | O24: 是 | P24: 土地流转、就业务工带动村民40余户（其中脱贫户4户）增收 | Q24: 建成投产后，预计每年增加村集体经济收入约6万元 | R24: 1756 | S24: 46 | T24: 市委组织部、市财政局、市农业农村局 | U24: 汪家顺 | V24: 13477737658
A25: 19 | B25: 灵乡镇 | C25: 罗桥村 | D25: 灵乡镇罗桥村畜禽养殖项目 | E25: 产业发展 | F25: 生产项目 | G25: 养殖业基地 | H25: 养殖跑山鸡3000只，新建养殖大棚2个，养殖家畜近10只。 | I25: 40 | J25: 2025 | K25: 否 | L25: 是 | M25: 否 | N25: 是 | O25: 是 | P25: 土地流转、就业务工等 | Q25: 村集体增收5万元，带动脱贫户监测户13人就业增收 | R25: 120 | S25: 22 | T25: 市农业农村局、畜牧中心 | U25: 余惠明 | V25: 15971527856
A26: 20 | B26: 灵乡镇 | C26: 贺铺村 | D26: 灵乡镇贺铺村沟渠护砌工程 | E26: 乡村建设行动 | F26: 农村基础设施（含产业配套基础设施） | G26: 其他 | H26: 新建挡土墙80米 | I26: 20 | J26: 2025 | K26: 否 | L26: 是 | M26: 是 | N26: 否 | O26: 否 | P26: 改善村庄环境。 | Q26: 改善村民生产生活条件 | R26: 1448 | S26: 600 | T26: 市农业农村局 | U26: 纪荒山 | V26: 18986605334
A27: 21 | B27: 灵乡镇 | C27: 风桥村 | D27: 灵乡镇风桥村研学基地建设项目 | E27: 产业发展 | F27: 生产项目 | G27: 休闲农业与乡村旅游 | H27: 铺装田间路3000米，滴管盖设施3000米、新建蓄水池一座，安装栅栏3000米，铺装人行1800米，采购农机6台、农耕器材60套。 | I27: 120 | J27: 2025年 | K27: 否 | L27: 是 | M27: 否 | N27: 是 | O27: 否 | P27: 改善村民居住环境，促进村集体经济发展，通过就业务工方式带动脱贫人口增加收入 | Q27: 方便村民出行、促进风桥村旅游发展 | R27: 275 | S27: 16 | T27: 市农业农村局 | U27: 纪建刚 | V27: 18671420201
A28: 小计 | C28: 2 | I28: =SUM(I24:I27) -> 260 | R28: =SUM(R24:R27) -> 3599 | S28: =SUM(S24:S27) -> 684
A29: 22 | B29: 殷祖镇 | C29: 五庄村 | D29: 殷祖镇五庄村茶园基地基础设施建设项目 | E29: 产业发展 | F29: 生产项目 | G29: 种植业基地 | H29: 茶园山洪沟渠整治500米，采茶通道建设500米，确保抗旱保苗 | I29: 30 | J29: 2025 | K29: 否 | L29: 是 | M29: 否 | N29: 否 | O29: 否 | P29: 产业发展、就业务工 | Q29: 带动脱贫户及附近村民就业增收，增加村集体经济，促进农村产业发展 | R29: 1775 | S29: 12 | T29: 市农业农村局、市茶办 | U29: 黄永友 | V29: 13477757788
A30: 23 | B30: 殷祖镇 | C30: 董口村 | D30: 殷祖镇董口村泉塘许湾田铺塘撂荒田改造项目 | E30: 产业发展 | F30: 生产项目 | G30: 种植业基地 | H30: 规划整治、改造撂荒沼泽田16亩，预埋管道引流水源，种植莲藕 | I30: 20 | J30: 2025 | K30: 否 | L30: 是 | M30: 否 | N30: 是 | O30: 是 | P30: 土地流转、就业务工 | Q30: 可带动脱贫户及附近村民就业增收，增加村集体经济，促进农村产业带动旅游产业 | R30: 220 | S30: 38 | T30: 市农业农村局 | U30: 许祖研 | V30: 13647144015
A31: 24 | B31: 殷祖镇 | C31: 董口村 | D31: 大冶市果满仓种植家庭农场产业路建设项目 | E31: 乡村建设行动 | F31: 农村基础设施（含产业配套基础设施） | G31: 产业路、资源路、旅游路建设 | H31: 绕家庭农场内建设一条2公里产业路 | I31: 30 | J31: 2025 | K31: 否 | L31: 是 | M31: 否 | N31: 否 | O31: 否 | P31: 改善基地生产条件 | Q31: 促进农村产业带动旅游产业 | R31: 313 | S31: 158 | T31: 市农业农村局 | U31: 许祖研 | V31: 13647144015
A32: 25 | B32: 殷祖镇 | C32: 北山村 | D32: 殷祖镇北山村东路、西路扩宽建设项目 | E32: 乡村建设行动 | F32: 农村基础设施（含产业配套基础设施） | G32: 农村道路建设（通村路、通户路、小型桥梁等） | H32: 北山村东路1.2公里扩宽；西路5.7公里会车平台建设和转弯处扩宽 | I32: 60 | J32: 2025 | K32: 否 | L32: 是 | M32: 是 | N32: 否 | O32: 否 | P32: 带动生产 | Q32: 保障道路交通安全，助力乡村旅游和白茶产业发展 | R32: 1280 | S32: 20 | T32: 市交通运输局 | U32: 徐顺国 | V32: 15897791328
A33: 26 | B33: 殷祖镇 | C33: 北山村 | D33: 殷祖镇北山村北董路硬化建设项目 | E33: 乡村建设行动 | F33: 农村基础设施（含产业配套基础设施） | G33: 农村道路建设（通村路、通户路、小型桥梁等） | H33: 北山村至坳转垴2公里道路硬化 | I33: 60 | J33: 2025 | K33: 否 | L33: 是 | M33: 是 | N33: 否 | O33: 否 | P33: 保障道路交通安全，助力乡村旅游发展 | Q33: 解决群众出行困难 | R33: 1280 | S33: 20 | T33: 市交通运输局 | U33: 徐顺国 | V33: 15897791328
A34: 27 | B34: 殷祖镇 | C34: 继堂村 | D34: 殷祖镇继堂村门口塘引水工程项目 | E34: 乡村建设行动 | F34: 农村基础设施（含产业配套基础设施） | G34: 农村供水保障设施建设 | H34: 新建蓄水池，铺设通往各湾组门口塘引水管道5000米， | I34: 55 | J34: 2025 | K34: 是 | L34: 是 | M34: 是 | N34: 否 | O34: 否 | P34: 改善门口头夏季臭水现象，提升村民用水安全 | Q34: 保障村民饮水安全 | R34: 1662 | S34: 30 | T34: 市水利和湖泊局 | U34: 卫汉春 | V34: 13597719509
A35: 28 | B35: 殷祖镇 | C35: 继堂村 | D35: 殷祖镇继堂村沟渠建设项目 | E35: 产业发展 | F35: 配套设施项目 | G35: 小型农田水利设施建设 | H35: 排水沟建设2000米 | I35: 30 | J35: 2025 | K35: 否 | L35: 是 | M35: 是 | N35: 否 | O35: 否 | P35: 落实基本农田保护，保障村民权益 | Q35: 提升村庄雨季排水 | R35: 1662 | S35: 30 | T35: 市农业农村局 | U35: 卫汉春 | V35: 13597719509
A36: 29 | B36: 殷祖镇 | C36: 七冲村 | D36: 殷祖镇七冲村陈必敬湾沟渠治理项目 | E36: 乡村建设行动 | F36: 人居环境整治 | G36: 村容村貌提升 | H36: 清理整治陈必敬沟渠200米 | I36: 6.5 | J36: 2025 | K36: 否 | L36: 是 | M36: 是 | N36: 否 | O36: 否 | P36: 提升群众生产生活条件 | Q36: 改善七冲村陈必敬水沟环境，提升群众生产生活条件 | R36: 400 | S36: 25 | T36: 市农业农村局 | U36: 张纪友 | V36: 13886464538
A37: 30 | B37: 殷祖镇 | C37: 赤山村 | D37: 殷祖镇赤山村粮油厂配套设施项目 | E37: 产业发展 | F37: 加工流通项目 | G37: 加工业 | H37: 购买稻谷烘干设备、榨油机及基础设施配套建设 | I37: 45 | J37: 2025 | K37: 否 | L37: 是 | M37: 是 | N37: 否 | O37: 是 | P37: 就业务工 | Q37: 带动附近脱贫户及农户就业增收，增加村集体经济，促进农村产业发展 | R37: 1939 | S37: 5 | T37: 市农业农村局 | U37: 周玉虎 | V37: 13597663232
A38: 31 | B38: 殷祖镇 | C38: 丁山村 | D38: 殷祖镇丁山村上徐湾至洪口塘湾道路硬化项目 | E38: 乡村建设行动 | F38: 农村基础设施（含产业配套基础设施） | G38: 农村道路建设（通村路、通户路、小型桥梁等） | H38: 上徐湾至洪口塘湾道路硬化300米 | I38: 6 | J38: 2025 | K38: 否 | L38: 是 | M38: 否 | N38: 否 | O38: 否 | P38: 改善村庄基础设施，提升村容村貌 | Q38: 改善村庄基础设施，提升村容村貌 | R38: 800 | S38: 30 | T38: 市交通运输局 | U38: 肖文 | V38: 15871198200
A39: 32 | B39: 殷祖镇 | C39: 胡六村 | D39: 殷祖镇胡六村杨宸湾、墩上湾、胡六湾沟渠护砌建设项目 | E39: 产业发展 | F39: 配套设施项目 | G39: 小型农田水利设施建设 | H39: 杨宸湾、墩上湾、胡六湾3500米沟渠护砌 | I39: 150 | J39: 2025 | K39: 否 | L39: 是 | M39: 是 | N39: 否 | O39: 否 | P39: 完善农田灌溉排水设施，改善群众生产生活条件境 | Q39: 改善600亩农田基本灌溉与排水问题 | R39: 271 | S39: 150 | T39: 市农业农村局 | U39: 查咏娥 | V39: 15172058490
A40: 33 | B40: 殷祖镇 | C40: 胡六村 | D40: 殷祖镇胡六村冠塘港堤墩上湾路段硬化项目 | E40: 乡村建设行动 | F40: 农村基础设施（含产业配套基础设施） | G40: 产业路、资源路、旅游路建设 | H40: 胡六村冠塘港堤墩上湾路段500米路面硬化 | I40: 10 | J40: 2025 | K40: 否 | L40: 是 | M40: 是 | N40: 否 | O40: 否 | P40: 改善村庄基础设施，提升村容村貌 | Q40: 改善村庄基础设施，提升村容村貌 | R40: 140 | S40: 60 | T40: 市交通运输局 | U40: 查咏娥 | V40: 15172058490
A41: 34 | B41: 殷祖镇 | C41: 胡六村 | D41: 殷祖镇胡六村计事岭水塘维修加固及泵站建设、电路安装项目 | E41: 产业发展 | F41: 配套设施项目 | G41: 小型农田水利设施建设 | H41: 100米塘堤加固、新建16平方泵站、新建800米沟渠、1300米电路安装 | I41: 100 | J41: 2025 | K41: 否 | L41: 是 | M41: 是 | N41: 否 | O41: 否 | P41: 完善农田灌溉排水设施，进一步改善群众生产生活条件境 | Q41: 完善农田灌溉排水设施，改善群众生产生活条件境 | R41: 440 | S41: 20 | T41: 市农业农村局 | U41: 查咏娥 | V41: 15172058490
A42: 35 | B42: 殷祖镇 | C42: 殷祖村 | D42: 殷祖镇殷祖村清华堂湾种植葡萄项目 | E42: 产业发展 | F42: 生产项目 | G42: 种植业基地 | H42: 种植葡萄8亩 | I42: 10 | J42: 2025 | K42: 否 | L42: 是 | M42: 否 | N42: 是 | O42: 是 | P42: 土地流转、就业务工 | Q42: 带动脱贫户及附近村民就业增收，促进农村产业 | R42: 320 | S42: 140 | T42: 市农业农村局 | U42: 殷显强 | V42: 13597634159
A43: 36 | B43: 殷祖镇 | C43: 殷祖村 | D43: 殷祖镇殷祖村清华堂湾产业路硬化建设项目 | E43: 乡村建设行动 | F43: 农村基础设施（含产业配套基础设施） | G43: 产业路、资源路、旅游路建设 | H43: 殷祖村清华堂湾郑家垅至葡萄园300米道路硬化 | I43: 8 | J43: 2025 | K43: 否 | L43: 是 | M43: 否 | N43: 否 | O43: 否 | P43: 改善基地生产条件 | Q43: 完成葡萄园300米道路硬化，促进农村产业发展 | R43: 450 | S43: 25 | T43: 市交通运输局 | U43: 殷显强 | V43: 13597634159
A44: 37 | B44: 殷祖镇 | C44: 高墙村 | D44: 殷祖镇高墙村大秦岩至陶垅道路硬化项目 | E44: 乡村建设行动 | F44: 农村基础设施（含产业配套基础设施） | G44: 农村道路建设（通村路、通户路、小型桥梁等） | H44: 大秦岩至陶垅道路硬化1公里 | I44: 60 | J44: 2025 | K44: 否 | L44: 是 | M44: 否 | N44: 否 | O44: 否 | P44: 改善道路出行条件，保障太婆尖游客出行安全 | Q44: 改善道路出行条件，保障太婆尖游客出行安全 | R44: 257 | S44: 26 | T44: 市交通运输局 | U44: 董克咏 | V44: 13886459689
A45: 38 | B45: 殷祖镇 | C45: 高墙村 | D45: 殷祖镇高墙村委会后背路至山头上道路硬化项目 | E45: 乡村建设行动 | F45: 农村基础设施（含产业配套基础设施） | G45: 农村道路建设（通村路、通户路、小型桥梁等） | H45: 高墙村委会后背路至山头上道路硬化1.2公里 | I45: 55 | J45: 2025 | K45: 否 | L45: 是 | M45: 否 | N45: 否 | O45: 否 | P45: 改善群众出行，进一步完善群众生产生活条件 | Q45: 改善群众出行，进一步完善群众生产生活条件 | R45: 785 | S45: 22 | T45: 市交通运输局 | U45: 董克咏 | V45: 13886459689
A46: 39 | B46: 殷祖镇 | C46: 高墙村 | D46: 殷祖镇高墙村杨家发100立方蓄水池饮水工程项目 | E46: 乡村建设行动 | F46: 农村基础设施（含产业配套基础设施） | G46: 农村供水保障设施建设 | H46: 修建蓄水池100立方 | I46: 30 | J46: 2025 | K46: 是 | L46: 是 | M46: 否 | N46: 否 | O46: 否 | P46: 解决村民用水问题，改善村民生产生活条件 | Q46: 保障高墙村400户村民生活、生产用水问题 | R46: 1600 | S46: 28 | T46: 市水利和湖泊局 | U46: 董克咏 | V46: 13886459689
A47: 40 | B47: 殷祖镇 | C47: 南昌村 | D47: 大冶市殷祖镇南昌村全自动化养殖场 | E47: 产业发展 | F47: 新型农村集体经济发展项目 | G47: 新型农村集体经济发展项目 | H47: 建全自动化养鸡场约600平方米，购买全自动化养鸡设备设备、农机等 | I47: 70 | J47: 2025 | K47: 否 | L47: 是 | M47: 否 | N47: 是 | O47: 是 | P47: 土地流转、务工就业 | Q47: 预期收益20年，预计每年增加村集体经济收入约5-8万元 | R47: 1739 | S47: 12 | T47: 市委组织部、市财政局、市农业农村局 | U47: 余劲松 | V47: 15926908096
A48: 41 | B48: 殷祖镇 | C48: 赤山村、五庄村、继堂村、朱铺村、董口村、丁山村等12个村 | D48: 殷祖镇粮食生产安全建设项目 | E48: 产业发展 | F48: 配套设施项目 | G48: 小型农田水利设施建设 | H48: 土地平整100亩，港渠建设300，沟渠建设2600米，机耕路建设1公里，蓄水池1座，引水管道8000米，董口水库东西干渠护砌、种子肥料等 | I48: 800 | J48: 2025 | K48: 否 | L48: 是 | M48: 是 | N48: 是 | O48: 是 | P48: 解决农田水利灌溉问题 | Q48: 保障赤山村、五庄村100亩农田基本灌溉与排水问题 | R48: 5000 | S48: 2000 | T48: 市水利湖泊局 市农业农村局 | U48: 刘驹 | V48: 13581299626
A49: 42 | B49: 殷祖镇 | C49: 高墙村 | D49: 殷祖镇太婆尖文旅开发建设项目 | E49: 产业发展 | F49: 生产项目 | G49: 休闲农业与乡村旅游 | H49: 太婆尖广场硬化、公厕1座、蓄水池、生态停车场，太婆尖茶叶展销中心提档升级，登山步道 | I49: 600 | J49: 2025 | K49: 否 | L49: 是 | M49: 否 | N49: 是 | O49: 是 | P49: 务工就业、土地流转、分红 | Q49: 带动村级济收入，脱贫户及附近村民就业，拓展高墙村农副产品市场 | R49: 1500 | S49: 500 | T49: 市农业农村局 市文旅局 | U49: 刘驹 | V49: 13581299626
A50: 43 | B50: 殷祖镇 | C50: 继堂村、塘下村、畈段村 | D50: 殷祖镇茶叶产业链配套设施建设项目 | E50: 乡村建设行动 | F50: 农村基础设施（含产业配套基础设施） | G50: 其他 | H50: 涵洞、沟渠建设600米，白茶产业路500米、机井1座，15千瓦泵房，200米引水管 | I50: 80 | J50: 2025 | K50: 否 | L50: 是 | M50: 是 | N50: 否 | O50: 否 | P50: 改善产业基地生产条件 | Q50: 提高产业基地生产效能，带动脱贫户及附近村民就业，务工工资达3万元 | R50: 500 | S50: 300 | T50: 市农业农村局 | U50: 刘驹 | V50: 13581299626
A51: 44 | B51: 殷祖镇 | C51: 朱铺村 | D51: 殷祖镇朱铺村水果基地提档升级工程 | E51: 产业发展 | F51: 生产项目 | G51: 种植业基地 | H51: 扩大猕猴桃种植50亩 | I51: 50 | J51: 2025 | K51: 否 | L51: 是 | M51: 是 | N51: 是 | O51: 是 | P51: 务工就业、土地流转 | Q51: 村集体经济及脱贫人口增收3万 | R51: 1886 | S51: 50 | T51: 市文旅局 | U51: 徐聪聪 | V51: 19976645678
A52: 45 | B52: 殷祖镇 | C52: 巴庄村 | D52: 殷祖镇巴庄村新建无花果基地 | E52: 产业发展 | F52: 生产项目 | G52: 种植业基地 | H52: 新种植无花果25亩 | I52: 50 | J52: 2025 | K52: 否 | L52: 是 | M52: 否 | N52: 是 | O52: 是 | P52: 土地流转、就业务工 | Q52: 带动脱贫户就业15人，一般户200人，增加村级集体经济6万元以上 | R52: 1000 | S52: 500 | T52: 市农业农村局 | U52: 石志宇 | V52: 13872123699
A53: 46 | B53: 殷祖镇 | C53: 花市村 | D53: 殷祖镇花市村章安种植农民专业合作社仓储建设 | E53: 产业发展 | F53: 加工流通项目 | G53: 农产品仓储保鲜冷链基础设施建设 | H53: 建设仓储长20米，宽10米，建长30米，宽3.5米的石子路 | I53: 15 | J53: 2025 | K53: 否 | L53: 是 | M53: 是 | N53: 是 | O53: 是 | P53: 土地流转、务工就业 | Q53: 可带动脱贫户20人就业，可增加村集体经济 | R53: 30 | S53: 30 | T53: 市农业农村局 | U53: 章亚鸣 | V53: 15576649218
A54: 47 | B54: 殷祖镇 | C54: 南昌村 | D54: 殷祖镇南昌村人居环境整治项目 | E54: 乡村建设行动 | F54: 人居环境整治 | G54: 村容村貌提升 | H54: 新建沟渠400米，沟渠清理500米，小三园建设1000平方，加压泵房1座 | I54: 78 | J54: 2025 | K54: 否 | L54: 是 | M54: 否 | N54: 否 | O54: 否 | P54: 改善人居环境，提升村容村貌 | Q54: 改善人居环境，提升村容村貌 | R54: 400 | S54: 90 | T54: 市农业农村局 | U54: 余劲松 | V54: 15926908096
A55: 48 | B55: 殷祖镇 | C55: 朱铺村 | D55: 殷祖镇朱铺村胡家山湾送水桥重建工程 | E55: 乡村建设行动 | F55: 农村基础设施（含产业配套基础设施） | G55: 农村道路建设（通村路、通户路、小型桥梁等） | H55: 重建送水桥长50米，宽2.5米 | I55: 45 | J55: 2025 | K55: 否 | L55: 是 | M55: 是 | N55: 否 | O55: 否 | P55: 方便群众出行，进一步改善群众生产生活条件境 | Q55: 解决群众出行困难 | R55: 169 | S55: 65 | T55: 市交通运输局 | U55: 徐聪聪 | V55: 19976645678
A56: 49 | B56: 殷祖镇 | C56: 花市村 | D56: 殷祖镇花市村章安路口改造项目 | E56: 乡村建设行动 | F56: 农村基础设施（含产业配套基础设施） | G56: 农村道路建设（通村路、通户路、小型桥梁等） | H56: 硬化混凝土长45米,15米，高0.2米，路基石渣土回填。 | I56: 18 | J56: 2025 | K56: 否 | L56: 是 | M56: 是 | N56: 否 | O56: 否 | P56: 改善道路出行条件，保障出行人员人身安全 | Q56: 保障来往行人人身安全，改善道路出行条件 | R56: 500 | S56: 200 | T56: 市交通运输局 | U56: 项建利 | V56: 15826976008
A57: 小计 | C57: 3 | I57: =SUM(I29:I56) -> 2571.5 | R57: =SUM(R29:R56) -> 28318 | S57: =SUM(S29:S56) -> 4586
A58: 50 | B58: 金山店镇 | C58: 朝阳村 | D58: 金山店镇朝阳村粮油生产车间项目 | E58: 产业发展 | F58: 加工流通项目 | G58: 加工业 | H58: 建设一座200平方的榨油车间；建设一座300平方的屯粮仓库 | I58: 80 | J58: 2025 | K58: 否 | L58: 是 | M58: 是 | N58: 是 | O58: 是 | P58: 就业务工 | Q58: 带动脱贫户11人务工，每人年可增加1000元的收入，村集体年收入5万元 | R58: 1126 | S58: 11 | T58: 市农业农村局 | U58: 柯强胜 | V58: 13339929298
A59: 51 | B59: 金山店镇 | C59: 朝阳村 梅山村 | D59: 金山店镇朝阳村茶产业发展项目 | E59: 产业发展 | F59: 配套设施项目 | G59: 小型农田水利设施建设 | H59: 1.对现有茶园基础设施进行完善，在朝阳村茶园建设长780米、宽1.5米的沟渠；2.在梅山茶园建设长2100米、宽3.5米的水泥路 | I59: 50 | J59: 2025 | K59: 否 | L59: 是 | M59: 是 | N59: 否 | O59: 否 | P59: 就业务工 | Q59: 带动脱贫户18人务工，每人年可增加1000元的收入，村集体年收入15万元 | R59: 18 | S59: 18 | T59: 市农业农村局、市交通运输局 | U59: 柯强胜 柯鑫 | V59: 13339929298 13986605644
A60: 52 | B60: 金山店镇 | C60: 仕秦村 | D60: 金山店镇仕秦村中药材育苗大棚建设项目 | E60: 产业发展 | F60: 生产项目 | G60: 种植业基地 | H60: 中药材育苗大棚建设10亩 | I60: 50 | J60: 2025 | K60: 否 | L60: 是 | M60: 是 | N60: 是 | O60: 是 | P60: 就业务工 | Q60: 初步形成中药材种植规模产业链，增加村集体经济收入8万元 | R60: 1066 | S60: 60 | T60: 市卫健局 | U60: 张清浪 | V60: 13451049478
A61: 53 | B61: 金山店镇 | C61: 向阳村 | D61: 金山店镇向阳村向阳洞旅游公路建设项目 | E61: 乡村建设行动 | F61: 农村基础设施（含产业配套基础设施） | G61: 产业路、资源路、旅游路建设 | H61: 建设长5公里，宽3.5米的旅游路 | I61: 120 | J61: 2025 | K61: 否 | L61: 是 | M61: 是 | N61: 否 | O61: 否 | P61: 就业务工、带动生产 | Q61: 改善向阳洞连接公路，推动旅游业发展 | R61: 2170 | S61: 780 | T61: 市农业农村局 | U61: 朱瑞 | V61: 13872144139
A62: 54 | B62: 金山店镇 | C62: 火石村 | D62: 金山店火石村高标准数字菊花产业园建设项目 | E62: 产业发展 | F62: 产业服务支撑项目 | G62: 智慧农业 | H62: 运用数字化、智能化管理降低成本，打造集菊花种植、研发、旅游观光于一体的综合性数字菊花产业园 | I62: 50 | J62: 2025 | K62: 否 | L62: 是 | M62: 否 | N62: 是 | O62: 否 | P62: 土地流转、就业服务、劳动生产等 | Q62: 搭建数字化平台，建设产业园智能化种植 | R62: 1480 | S62: 1480 | T62: 市农业农村局 | U62: 陈林 | V62: 8856808
A63: 55 | B63: 金山店镇 | C63: 山下村 | D63: 金山店镇山下村家政服务项目 | E63: 就业项目 | F63: 就业 | G63: 技能培训 | H63: 成立村级家政服务公司，为他们提供培训、购置交通工具，劳动工具，提供村级家政保洁、绿化维修服务 | I63: 16 | J63: 2025 | K63: 否 | L63: 是 | M63: 否 | N63: 否 | O63: 否 | P63: 就业务工 | Q63: 解决农村闲置劳动就业岗位，增加村集体收入 | R63: 100 | S63: 40 | T63: 市人社局 | U63: 龚攀峰 | V63: 18062299499
A64: 56 | B64: 金山店镇 | C64: 车桥村 | D64: 金山店镇车桥村哈密瓜种植项目 | E64: 产业发展 | F64: 生产项目 | G64: 种植业基地 | H64: 哈密瓜种植基地15亩 | I64: 60 | J64: 2025 | K64: 否 | L64: 是 | M64: 否 | N64: 是 | O64: 是 | P64: 土地流转、就业务工 | Q64: 带动就业人口30人，增加集体经济收入5万元 | R64: 1911 | S64: 30 | T64: 市文旅局 | U64: 黄朝军 | V64: 13971788141
A65: 57 | B65: 金山店镇 | C65: 车桥村 | D65: 金山店镇车桥村产业路项目 | E65: 乡村建设行动 | F65: 农村基础设施（含产业配套基础设施） | G65: 产业路、资源路、旅游路建设 | H65: 鹏舟产业路延伸1000米 | I65: 40 | J65: 2025 | K65: 否 | L65: 是 | M65: 否 | N65: 否 | O65: 否 | P65: 改善产业生产条件 | Q65: 提高生产生活条件 | R65: 1911 | S65: 210 | T65: 市农业农村局 | U65: 黄朝军 | V65: 13971788141
A66: 58 | B66: 金山店镇 | C66: 车桥村 | D66: 车桥村水果种植基地 | E66: 产业发展 | F66: 新型农村集体经济发展项目 | G66: 新型农村集体经济发展项目 | H66: 采购翠冠梨果苗1500余株，建100余亩的翠冠梨种植基地；建20亩的哈密瓜大棚基地；配套建设存储仓库和管理用房，配套灌溉、铁丝网等相关设施等。 | I66: 60 | J66: 2025 | K66: 否 | L66: 是 | M66: 否 | N66: 是 | O66: 是 | P66: 土地流转、务工就业 | Q66: 预计收益10年，预计增加村集体经济收入约5万元，后逐年增加 | R66: 2677 | S66: 224 | T66: 市委组织部、市财政局、市农业农村局 | U66: 黄朝军 | V66: 13971788141
A67: 59 | B67: 金山店镇 | C67: 永丰村 | D67: 金山店镇永丰村泉口乐湾西梅基地 | E67: 产业发展 | F67: 生产项目 | G67: 种植业基地 | H67: 40亩西梅.20亩狗血桃，10亩果冻橙种植及基地配套设施（电线杆，深井水管，蓄水池） | I67: 50 | J67: 2025 | K67: 否 | L67: 是 | M67: 否 | N67: 是 | O67: 是 | P67: 土地流转，带动脱贫户及村民务工 | Q67: 带动脱贫户6户及村民40人就业，流转土地为群众增收0.2万元 | R67: 480 | S67: 360 | T67: 市农业农村局 | U67: 陈世清 | V67: 13581295939
A68: 小计 | C68: 4 | I68: =SUM(I58:I67) -> 576 | R68: =SUM(R58:R67) -> 12939 | S68: =SUM(S58:S67) -> 3213
A69: 60 | B69: 大箕铺镇 | C69: 东角山村 | D69: 大箕铺镇东角山村老屋湾生态鸡养殖基地项目 | E69: 产业发展 | F69: 生产项目 | G69: 养殖业基地 | H69: 1、钢结构棚舍200㎡；2、活动板房50㎡；3、购买鸡仔3000只；4、土地平整30亩；5、其他配套设施建设 | I69: 70 | J69: 2025 | K69: 否 | L69: 是 | M69: 否 | N69: 是 | O69: 是 | P69: 就业务工、带动生产 | Q69: 为村集体经济增收5万元，村民增收5万元 | R69: 165 | S69: 75 | T69: 市农业农村局、畜牧中心 | U69: 曹国强 | V69: 13597694591
A70: 61 | B70: 大箕铺镇 | C70: 石家晚 | D70: 大箕铺镇石家晚村门前畈湾港堤修复项目 | E70: 乡村建设行动 | F70: 农村基础设施（含产业配套基础设施） | G70: 其他 | H70: 大港一边靠近主干道长12米港堤需修复建设，预计造价16万；大港另一边靠近耕地长30米需修复建设，预计9万。 | I70: 25 | J70: 2025 | K70: 否 | L70: 是 | M70: 是 | N70: 否 | O70: 否 | P70: 改善产业生产条件 | Q70: 解决了门前畈、石庭硅、石高晚、付家山片、龙塘片五个片区群众出行 | R70: 4200 | S70: 3300 | T70: 市水利和湖泊局 | U70: 石义文 | V70: 18186004599
A71: 62 | B71: 大箕铺镇 | C71: 港边村 | D71: 大箕铺镇港边村牛皮港灌溉工程项目 | E71: 产业发展 | F71: 配套设施项目 | G71: 小型农田水利设施建设 | H71: 1.赵景垅-牛皮港护砌u型槽U型槽1500米; 2.牛皮港-铁铺畈维修灌溉水沟维修900米水沟；3.牛皮港-港边畈新建灌溉水沟1500米 | I71: 44 | J71: 2025 | K71: 否 | L71: 是 | M71: 否 | N71: 否 | O71: 否 | P71: 带动生产 | Q71: 解决了群众种植灌灌溉，增加收入 | R71: 700 | S71: 400 | T71: 市农业农村局 | U71: 吴高明 | V71: 18271686333
A72: 63 | B72: 大箕铺镇 | C72: 曹家晚村 | D72: 大箕铺镇曹家晚村烈士陵园-水果产业园项目 | E72: 乡村建设行动 | F72: 农村基础设施（含产业配套基础设施） | G72: 产业路、资源路、旅游路建设 | H72: 曹家晚村产业路硬化长800米、宽3.5米。 | I72: 60 | J72: 2025 | K72: 否 | L72: 是 | M72: 否 | N72: 否 | O72: 否 | P72: 改善产业生产条件 | Q72: 改善群众生产生活条件 | R72: 380 | S72: 380 | T72: 市交通运输局 | U72: 曹晓辉 | V72: 15072071201
A73: 64 | B73: 大箕铺镇 | C73: 叶家庄村 | D73: 大箕铺镇叶家庄村户户通硬化及沟渠护砌建设项目 | E73: 乡村建设行动 | F73: 农村基础设施（含产业配套基础设施） | G73: 农村道路建设（通村路、通户路、小型桥梁等） | H73: 1.老鹳窠湾户户通硬化1000米 2.老鹳窠湾沟渠护砌400米 3.叶家庄湾路面宽2米、长度800米改造 5.叶家庄湾沟渠护砌100米 | I73: 80 | J73: 2025 | K73: 否 | L73: 是 | M73: 是 | N73: 否 | O73: 否 | P73: 改善产业生产条件 | Q73: 改善人居环境、提高村民生活质量 | R73: 2080 | S73: 2080 | T73: 市交通运输局 | U73: 曹黑彪 | V73: 15107235168
A74: 65 | B74: 大箕铺镇 | C74: 袁家咀村 | D74: 袁家咀村五升塘建设及公路硬化建设项目 | E74: 乡村建设行动 | F74: 农村基础设施（含产业配套基础设施） | G74: 农村道路建设（通村路、通户路、小型桥梁等） | H74: 袁家咀村五升塘清淤2000立方、护砌长400米宽0.8米高2米、排洪道、灌溉道建设:；户户通和产业路硬化长1500米、宽3.5米. | I74: 90 | J74: 2025 | L74: 是 | M74: 否 | N74: 否 | O74: 否 | P74: 带动生产 | Q74: 改善群众生产生活条件 | R74: 2180 | S74: 2180 | T74: 市水利和湖泊局、市交通运输局 | U74: 姜鹏云 | V74: 13597698611
A75: 66 | B75: 大箕铺镇 | C75: 八流村 | D75: 大箕铺镇八流村马家老屋门口塘建设及沟渠护砌建设项目 | E75: 乡村建设行动 | F75: 农村基础设施（含产业配套基础设施） | G75: 其他 | H75: 新建门口塘4亩及护栏、沟渠护砌500米，排洪道、灌溉道建设 | I75: 56 | J75: 2025 | K75: 否 | L75: 是 | M75: 是 | N75: 否 | O75: 否 | P75: 改善产业生产条件 | Q75: 改善村庄环境及生活农业用水 | R75: 580 | S75: 120 | T75: 市水利和湖泊局 | U75: 马作春 | V75: 13986590039
A76: 67 | B76: 大箕铺镇 | C76: 八流村 | D76: 大箕铺镇八流村樟树嘴堰新建项目 | E76: 产业发展 | F76: 配套设施项目 | G76: 小型农田水利设施建设 | H76: 堰坝长15米，2.5米宽，3米高，修护乐家山至八流水渠2000米，1米宽，0.7米高 | I76: 68 | J76: 2025 | K76: 否 | L76: 是 | M76: 是 | N76: 否 | O76: 否 | P76: 带动生产 | Q76: 解决乐家山、瓦家地、八流湾、刘金益4个片区450亩田地农业用水 | R76: 1600 | S76: 860 | T76: 市水利和湖泊局 | U76: 马作春 | V76: 13986590039
A77: 68 | B77: 大箕铺镇 | C77: 东角山村 | D77: 大箕铺镇东角山村蔬菜产业基地 | E77: 产业发展 | F77: 新型农村集体经济发展项目 | G77: 新型农村集体经济发展项目 | H77: 新建蔬菜大棚20个，发展蔬菜产业 | I77: 60 | J77: 2025 | K77: 否 | L77: 是 | M77: 否 | N77: 是 | O77: 是 | P77: 带动脱贫户20余人务工，带动周边农户50余人务工 | Q77: 预期收益10年，预计每年增加村集体经济收入约5万元 | R77: 1200 | S77: 160 | T77: 市委组织部、市财政局、市农业农村局 | U77: 曹国强 | V77: 13597694591
A78: 69 | B78: 大箕铺镇 | C78: 方至畈村 | D78: 大箕铺镇果蔬产业建设项目修复工程 | E78: 产业发展 | F78: 生产项目 | G78: 种植业基地 | H78: 修复倒塌损毁大棚66个 | I78: 200 | J78: 2025 | K78: 否 | L78: 是 | M78: 否 | N78: 是 | O78: 是 | P78: 土地流转、就业务工、带动生产 | Q78: 带动8+1九个村每年经济收入3万元 | R78: 500 | S78: 160 | T78: 市农业农村局 | U78: 陈秋良 | V78: 18171928533
A79: 70 | B79: 大箕铺镇 | C79: 大箕铺镇方至畈村和五里界村 | D79: 大箕铺镇黄连畈建设100亩大棚果蔬生产基地 | E79: 产业发展 | F79: 生产项目 | G79: 种植业基地 | H79: 建设100亩果蔬生产基地及配套水电路、沟渠和水肥一体化等设施 | I79: 430 | J79: 2025 | K79: 否 | L79: 是 | M79: 否 | N79: 是 | O79: 是 | P79: 土地流转、就业务工、带动生产 | Q79: 带动农户就近就业增加收入，带动特色产业发展，增加村集体经济收入 | R79: 3000 | S79: 500 | T79: 市商务局 | U79: 曹祥炳 | V79: 13972802789
A80: 小计 | C80: 5 | I80: =SUM(I69:I79) -> 1183 | R80: =SUM(R69:R79) -> 16585 | S80: =SUM(S69:S79) -> 10215
A81: 71 | B81: 茗山乡 | C81: 下余村 | D81: 茗山乡下余村水果种植基地提档升级 | E81: 产业发展 | F81: 新型农村集体经济发展项目 | G81: 新型农村集体经济发展项目 | H81: 种植基地果苗维护（基地整治和果苗补栽），配套部分灌溉、钢丝网围栏等设施；改建库房，功能性改造升级，配套产业存储仓库 | I81: 60 | J81: 2025 | K81: 否 | L81: 是 | M81: 否 | N81: 是 | O81: 是 | P81: 务工就业、土地流转方式、农副产品销售带动脱贫户及村民增入 | Q81: 预期收益15年，预计每年增加村集体经济收入约10万元 | R81: 1032 | S81: 800 | T81: 市委组织部、市财政局、市农业农村局 | U81: 余显佑 | V81: 13886478339
A82: 72 | B82: 茗山乡 | C82: 袁大村 | D82: 茗山乡袁大村袁大湾水库儿至绿洪产业路 | E82: 乡村建设行动 | F82: 农村基础设施（含产业配套基础设施） | G82: 产业路、资源路、旅游路建设 | H82: 公路硬化长991米×宽5米×厚0.2米；护砌长200米×宽0.6米×高3.5米；管道安装200米 | I82: 86 | J82: 2025 | K82: 否 | L82: 是 | M82: 否 | N82: 否 | O82: 否 | P82: 方便群众出行、就业务工、劳动生产等 | Q82: 完善产业基地基础配套设施，提高群众生产生活条件 | R82: 385 | S82: 165 | T82: 市交通运输局 | U82: 胡奇周 | V82: 13597658135
A83: 73 | B83: 茗山乡 | C83: 仄船村 | D83: 茗山乡仄船村新建水果采摘园 | E83: 产业发展 | F83: 生产项目 | G83: 种植业基地 | H83: 新建黄桃采摘园30亩，水肥一体化设施，新建产业路500米 | I83: 66 | J83: 2025 | K83: 否 | L83: 是 | M83: 是 | N83: 是 | O83: 是 | P83: 土地流转、就业务工、带动生产 | Q83: 解决脱贫户和一般农户就业60人 | R83: 560 | S83: 60 | T83: 市农业农村局 | U83: 黄柏明 | V83: 13886474646
A84: 74 | B84: 茗山乡 | C84: 京南村 | D84: 茗山乡京南村桑蚕养殖及加工 | E84: 产业发展 | F84: 生产项目 | G84: 养殖业基地 | H84: 新建新型养蚕大棚500平方、购置桑叶红茶机械设备及包装 | I84: 55 | J84: 2025 | K84: 否 | L84: 是 | M84: 是 | N84: 是 | O84: 是 | P84: 就业务工、带动生产 | Q84: 增加集体收入5万元，带动群众收入3万元 | R84: 200 | S84: 10 | T84: 市农业农村局 | U84: 黄朝盛 | V84: 13872112612
A85: 75 | B85: 茗山乡 | C85: 下余村 | D85: 茗山乡下余村水果采摘园基地三期建设项目 | E85: 产业发展 | F85: 生产项目 | G85: 种植业基地 | H85: 新建48亩水果采摘基地一处，土地平整48亩，钢丝网围栏500米，土地施肥48亩，果苗种植3360余株，沟渠开挖2880余米等 | I85: 31.6 | J85: 2025 | K85: 否 | L85: 是 | M85: 否 | N85: 是 | O85: 是 | P85: 土地流转、就业务工 | Q85: 流转21户土地48亩，每亩流转收益264元，村集体年增收2万元，带动脱贫户、一般户15人就业 | R85: 386 | S85: 30 | T85: 市委组织部、市财政局、市农业农村局 | U85: 余显佑 | V85: 13886478339
A86: 76 | B86: 茗山乡 | C86: 华若村 | D86: 茗山乡华若村光伏电站扩建工程 | E86: 产业发展 | F86: 生产项目 | G86: 光伏电站建设 | H86: 整地3亩，扩建100千瓦光伏发电站及配套设施 | I86: 80 | J86: 2025 | K86: 否 | L86: 是 | M86: 是 | N86: 是 | O86: 是 | P86: 壮大村集体经济收入，增加脱贫户收入 | Q86: 带动村民务工，增加村集体收入，增加脱贫户收入 | R86: 1026 | S86: 55 | T86: 市发改局 | U86: 柯亚军 | V86: 13886490987
A87: 77 | B87: 茗山乡 | C87: 华若村 | D87: 茗山乡华若村竹林垅排水沟建设工程 | E87: 产业发展 | F87: 配套设施项目 | G87: 小型农田水利设施建设 | H87: 维修护砌排水沟长1000m*宽0.8m*均高1.2m | I87: 25 | J87: 2025 | K87: 否 | L87: 是 | M87: 是 | N87: 否 | O87: 否 | P87: 改善村民生产生活水平 | Q87: 完善产业配套设施，提高合作社水源条件及改善农田灌溉条件 | R87: 1026 | S87: 286 | T87: 市水利和湖泊局 | U87: 柯亚军 | V87: 13886490987
A88: 78 | B88: 茗山乡 | C88: 黄湾村 | D88: 茗山乡黄湾村大棚蔬菜种植基地扩建 | E88: 产业发展 | F88: 生产项目 | G88: 种植业基地 | H88: 大棚蔬菜种植扩建30亩 | I88: 66 | J88: 2025 | K88: 否 | L88: 是 | M88: 是 | N88: 是 | O88: 是 | P88: 壮大村集体经济，增加脱贫户收入 | Q88: 村集体年增收10万元，带动脱贫户、一般户60人就业人均增收2000元 | R88: 1021 | S88: 32 | T88: 市商务局 | U88: 黄必正 | V88: 17771085962
A89: 79 | B89: 茗山乡 | C89: 黄湾村 | D89: 茗山乡黄湾村新建标准化卫生室 | E89: 乡村建设行动 | F89: 农村公共服务 | G89: 村卫生室标准化建设 | H89: 村卫生室标准化建设150㎡ | I89: 30 | J89: 2025 | K89: 是 | L89: 否 | M89: 是 | N89: 否 | O89: 否 | P89: 改善村民就医环境 | Q89: 提高公共卫生服务水平 | R89: 1021 | S89: 1021 | T89: 市卫健局 | U89: 黄必正 | V89: 17771085962
A90: 80 | B90: 茗山乡 | C90: 黄湾村 | D90: 茗山乡黄湾村下湾官塘清淤护砌 | E90: 乡村建设行动 | F90: 人居环境整治 | G90: 村容村貌提升 | H90: 官塘清淤护砌 | I90: 15 | J90: 2025 | K90: 否 | L90: 是 | M90: 是 | N90: 否 | O90: 否 | P90: 改善村民日常生活环境 | Q90: 改善人居环境 | R90: 103 | S90: 103 | T90: 市水利和湖泊局 | U90: 黄必正 | V90: 17771085962
A91: 81 | B91: 茗山乡 | C91: 黄湾村 | D91: 茗山乡黄湾村上湾文化活动广场建设及户户通工程 | E91: 乡村建设行动 | F91: 农村公共服务 | G91: 其他 | H91: 文化活动广场建设及户户通 | I91: 42 | J91: 2025 | K91: 否 | L91: 是 | M91: 是 | N91: 否 | O91: 否 | P91: 改善村民日常生活环境 | Q91: 改善人居环境 | R91: 302 | S91: 302 | T91: 市农业农村局 | U91: 黄必正 | V91: 17771085962
A92: 82 | B92: 茗山乡 | C92: 茗山村 | D92: 茗山乡茗山村发展香菇产业项目 | E92: 产业发展 | F92: 生产项目 | G92: 种植业基地 | H92: 养菌车间提档升级、露天喷灌设施、200米水井一个等 | I92: 60 | J92: 2025 | K92: 否 | L92: 是 | M92: 是 | N92: 是 | O92: 是 | P92: 壮大村集体经济，增加脱贫户收入 | Q92: 村集体年增收10万元，带动脱贫户、监测户6户11人 | R92: 2112 | S92: 108 | T92: 市农业农村局 | U92: 许学志 | V92: 13545536088
A93: 83 | B93: 茗山乡 | C93: 彭晚村 | D93: 茗山乡茗山村彭晚村发展生态农业巩固项目 | E93: 产业发展 | F93: 生产项目 | G93: 种植业基地 | H93: 开挖沟两边护砌300米，新建钢构大棚7亩 | I93: 45 | J93: 2025 | K93: 否 | L93: 是 | M93: 否 | N93: 是 | O93: 是 | P93: 壮大村集体经济，增加脱贫户收入 | Q93: 巩固生态农业发展，增加村集体和脱贫人口收入 | R93: 1054 | S93: 180 | T93: 市农业农村局 | U93: 柯天祥 | V93: 13986583178
A94: 84 | B94: 茗山乡 | C94: 天一村 | D94: 茗山村天一村天一湾安全饮水提档升级工程 | E94: 乡村建设行动 | F94: 农村基础设施（含产业配套基础设施） | G94: 农村供水保障设施建设 | H94: 安装不绣钢一体化净水设备 | I94: 15 | J94: 2025 | K94: 是 | L94: 否 | M94: 否 | N94: 否 | O94: 否 | P94: 提高饮水安全 | Q94: 改善居民生活条件环境 | R94: 512 | S94: 512 | T94: 市水利和湖泊局 | U94: 张成尧 | V94: 18607237899
A95: 85 | B95: 茗山乡 | C95: 天一村 | D95: 茗山乡茗山村天一村食用菌种植基地建设 | E95: 产业发展 | F95: 生产项目 | G95: 种植业基地 | H95: 食用菌种植10亩，大棚20个 | I95: 31 | J95: 2025 | K95: 否 | L95: 是 | M95: 否 | N95: 是 | O95: 是 | P95: 壮大村集体经济，增加脱贫户收入 | Q95: 增加村集体收入2万，带动10户农户就业增收 | R95: 1020 | S95: 223 | T95: 市农业农村局 | U95: 张成尧 | V95: 18607237899
A96: 小计 | C96: 6 | I96: =SUM(I81:I95) -> 707.6 | R96: =SUM(R81:R95) -> 11760 | S96: =SUM(S81:S95) -> 3887
A97: 86 | B97: 金牛镇 | C97: 胡胜村 | D97: 金牛镇胡胜村精养鳜鱼养殖 | E97: 产业发展 | F97: 生产项目 | G97: 水产养殖业发展 | H97: 租用水面面积20亩，配套活饵池40亩，土方开挖，电路，增氧系统，监控系统，补水系统安装等。 | I97: 80 | J97: 2025 | K97: 否 | L97: 是 | M97: 是 | N97: 是 | O97: 是 | P97: 土地流转，就业务工 | Q97: 带动脱贫户及监测户共67户，带动特色产业发展，增长村集体收入6万元 | R97: 20 | S97: 10 | T97: 市文旅局 | U97: 唐杰 | V97: 18772282236
A98: 87 | B98: 金牛镇 | C98: 胡胜村 | D98: 金牛镇胡胜村水产养殖 | E98: 产业发展 | F98: 生产项目 | G98: 水产养殖业发展 | H98: 租用水面面积5亩，补水管安装150米清淤3330立方米，排水口修建、电路、监控系统、增氧系统安装 | I98: 30 | J98: 2025 | K98: 否 | L98: 是 | M98: 是 | N98: 是 | O98: 是 | P98: 土地流转，务工就业 | Q98: 带动脱贫户及监测户共67户，带动特色产业发展，增村集体收入4万 | R98: 20 | S98: 10 | T98: 市农业农村局 | U98: 唐杰 | V98: 18772282236
A99: 88 | B99: 金牛镇 | C99: 龙潭村 | D99: 金牛镇龙潭村白仁湾基础设施建设项目 | E99: 乡村建设行动 | F99: 农村基础设施（含产业配套基础设施） | G99: 其他 | H99: 新建白仁湾沟渠0.2公里，门口塘清淤，新建护砌0.1公里；湾组道路拓宽0.1公里，湾组道路硬化0.3公里 | I99: 100 | J99: 2025 | K99: 否 | L99: 是 | M99: 是 | N99: 否 | O99: 否 | P99: 改善村民生产生活环境 | Q99: 方便群众出行，防止湾组内涝水淹 | R99: 1743 | S99: 1743 | T99: 市农业农村局 | U99: 徐忠明 | V99: 17762745312
A100: 89 | B100: 金牛镇 | C100: 鄂王城村 | D100: 金牛镇鄂王城村特色种养殖产业项目 | E100: 产业发展 | F100: 新型农村集体经济发展项目 | G100: 新型农村集体经济发展项目 | H100: 1.新建大棚7亩，香菇大棚500平方米。2.新建养殖棚400平米，人工养殖鸵鸟50只；3.新建烘干房、冻库等配套设施。 | I100: 80 | J100: 2025 | K100: 否 | L100: 是 | M100: 是 | N100: 是 | O100: 是 | P100: 带动务工、土地流转、农副产品销售带动脱贫户及村民增收 | Q100: 预期收益15年，预计每年增加村集体经济收入约5-8万元 | R100: 2520 | S100: 100 | T100: 市委组织部、市财政局、市农业农村局 | U100: 胡群钢 | V100: 15072054753
A101: 90 | B101: 金牛镇 | C101: 小堰村 | D101: 金牛镇小堰村通村公路维修及全线加宽工程 | E101: 乡村建设行动 | F101: 农村基础设施（含产业配套基础设施） | G101: 农村道路建设（通村路、通户路、小型桥梁等） | H101: 小堰村通村公路维修及全线加宽至5.5米。 | I101: 95.64 | J101: 2025 | K101: 否 | L101: 是 | M101: 否 | N101: 否 | O101: 否 | P101: 保障村民出行便利 | Q101: 美化乡村环境，方便车辆交错通行，消除安全隐患 | R101: 1419 | S101: 1419 | T101: 市交通运输局 | U101: 蔡丽芬 | V101: 13907235549
A102: 91 | B102: 金牛镇 | C102: 小泉村 | D102: 金牛镇小泉村食用菌基地项目 | E102: 产业发展 | F102: 生产项目 | G102: 种植业基地 | H102: 租用面积20亩，建设大棚，种植羊肚菌和香菇，其中有配套产业路和喷灌系统。 | I102: 90 | J102: 2025 | K102: 否 | L102: 是 | M102: 是 | N102: 是 | O102: 是 | P102: 土地流转，就业务工 | Q102: 带动脱贫户5户收入增加0.5万元，增长村集体收入 | R102: 2005 | S102: 27 | T102: 市农业农村局 | U102: 金敬先 | V102: 15871167599
A103: 92 | B103: 金牛镇 | C103: 小泉村 | D103: 金牛镇小泉村粮食加工厂项目 | E103: 产业发展 | F103: 加工流通项目 | G103: 加工业 | H103: 租用面积2000平方米厂房建设粮食加工，100吨粮食烘干机，碾米机等。 | I103: 1200 | J103: 2025 | K103: 否 | L103: 是 | M103: 是 | N103: 是 | O103: 是 | P103: 就业务工 | Q103: 带动脱贫户10户，平均每户脱贫户年收入增加0.5万元，增长村集体收入50万元。 | R103: 2005 | S103: 30 | T103: 市农业农村局 | U103: 金敬先 | V103: 15871167599
A104: 小计 | C104: 7 | I104: =SUM(I97:I103) -> 1675.64 | R104: =SUM(R97:R103) -> 9732 | S104: =SUM(S97:S103) -> 3339
A105: 93 | B105: 保安镇 | C105: 大洪村 | D105: 保安镇大洪村祝康农业项目 | E105: 产业发展 | F105: 新型农村集体经济发展项目 | G105: 新型农村集体经济发展项目 | H105: 扩大养牛规模，新增养殖种牛和小黄牛约50头、购买饲料,完善养牛环保设施，升级自动喂养设备 | I105: 62.5 | J105: 2025 | K105: 否 | L105: 是 | M105: 否 | N105: 是 | O105: 是 | P105: 通过带动务工和土地流转方式，实现脱贫户及村民增加经济收入 | Q105: 预期收益10年，预计每年增加村集体经济收入约5-6万元 | R105: 1206 | S105: 122 | T105: 市委组织部、市财政局、市农业农村局 | U105: 祝新林 | V105: 15871181188
A106: 94 | B106: 保安镇 | C106: 桃树村 | D106: 保安镇桃树村榨刺垴湾组级道路硬化项目 | E106: 乡村建设行动 | F106: 农村基础设施（含产业配套基础设施） | G106: 农村道路建设（通村路、通户路、小型桥梁等） | H106: 新建长度100米，宽3.5米，厚0.2米道路硬化平整 | I106: 5 | J106: 2025 | K106: 否 | L106: 是 | M106: 否 | N106: 否 | O106: 否 | P106: 方便群众出行，改善群众生产生活条件境 | Q106: 解决群众出行困难 | R106: 278 | S106: 160 | T106: 市交通运输局 | U106: 熊红兵 | V106: 13597623771
A107: 95 | B107: 保安镇 | C107: 桃树村 | D107: 保安镇桃树村榨刺垴湾石头嘴门口塘清淤护砌建设工程 | E107: 乡村建设行动 | F107: 农村基础设施（含产业配套基础设施） | G107: 其他 | H107: 新建面积0.8亩塘护砌 | I107: 25 | J107: 2025 | K107: 否 | L107: 是 | M107: 否 | N107: 否 | O107: 否 | P107: 改善村居环境，改善群众生产生活条件 | Q107: 解决群众取水困难 | R107: 278 | S107: 210 | T107: 市水利和湖泊局 | U107: 熊红兵 | V107: 13597623771
A108: 96 | B108: 保安镇 | C108: 桃树村 | D108: 保安镇桃树村官桥尹湾通村道路硬化工程项目 | E108: 乡村建设行动 | F108: 农村基础设施（含产业配套基础设施） | G108: 农村道路建设（通村路、通户路、小型桥梁等） | H108: 新建长度850米，宽3.5米（路基5米），厚0.2米道路硬化 | I108: 38 | J108: 2025 | K108: 否 | L108: 是 | M108: 否 | N108: 否 | O108: 否 | P108: 方便群众出行，改善群众生产生活条件境 | Q108: 群众出行得到便利，提升村庄面貌 | R108: 330 | S108: 220 | T108: 市交通运输局 | U108: 熊红兵 | V108: 13597623771
A109: 97 | B109: 保安镇 | C109: 盘茶村 | D109: 保安镇盘茶村盘茶南山产业路扩宽改造 | E109: 乡村建设行动 | F109: 农村基础设施（含产业配套基础设施） | G109: 产业路、资源路、旅游路建设 | H109: 途径明家巷、朱庄屋、盘茶胡、盘茶汪长3500米/宽5米，/宽4米/厚0.2米，道路扩建硬化 | I109: 220 | J109: 2025 | K109: 否 | L109: 是 | M109: 否 | N109: 否 | O109: 否 | P109: 方便群众出行，改善群众生产生活条件境 | Q109: 促进乡村旅游发展，改善群众生产生活环境 | R109: 119 | S109: 119 | T109: 市交通运输局 | U109: 明安池 | V109: 13995962832
A110: 98 | B110: 保安镇 | C110: 磨山村 | D110: 保安镇磨山村龙家大屋湾西裤子脚产业路建设工程 | E110: 乡村建设行动 | F110: 农村基础设施（含产业配套基础设施） | G110: 产业路、资源路、旅游路建设 | H110: 公路硬化400米及附属 | I110: 20 | J110: 2025 | K110: 否 | L110: 是 | M110: 是 | N110: 否 | O110: 否 | P110: 就业务工 | Q110: 提升养殖户养殖水平，降低养殖成本，方便群众生产、生活 | R110: 175 | S110: 175 | T110: 市交通运输局 | U110: 万建虎 | V110: 13308683044
A111: 99 | B111: 保安镇 | C111: 磨山村 | D111: 磨山村进村产业路建设工程 | E111: 乡村建设行动 | F111: 农村基础设施（含产业配套基础设施） | G111: 产业路、资源路、旅游路建设 | H111: 新建进村公路1400米、路面宽3.5米、厚度0.2米。 | I111: 77 | J111: 2025 | K111: 否 | L111: 是 | M111: 是 | N111: 否 | O111: 否 | P111: 务工 | Q111: 方便群众生产、生活，解决路边200亩土地的生产运输 | R111: 1219 | S111: 1219 | T111: 市农业农村局 | U111: 万建虎 | V111: 13308683044
A112: 100 | B112: 保安镇 | C112: 桂花村 | D112: 保安镇桂花村产业基地围院及附属建设工程 | E112: 乡村建设行动 | F112: 农村基础设施（含产业配套基础设施） | G112: 其他 | H112: 建设围院长度450米 | I112: 33.5 | J112: 2025 | K112: 否 | L112: 是 | M112: 是 | N112: 否 | O112: 否 | P112: 就业务工 | Q112: 完善加工厂基础设施 | R112: 2599 | S112: 50 | T112: 市农业农村局 | U112: 黄开应 | V112: 15871181966
A113: 101 | B113: 保安镇 | C113: 牛山村 | D113: 保安镇牛山村何高昂果树种植项目 | E113: 产业发展 | F113: 生产项目 | G113: 种植业基地 | H113: 果树种植300亩 | I113: 300 | J113: 2025 | K113: 否 | L113: 是 | M113: 否 | N113: 是 | O113: 是 | P113: 土地流转、就业务工、劳动生产等 | Q113: 流转62户土地300亩，每亩收益300元，村集体年增收3万元，带动脱贫户6人就业 | R113: 2186 | S113: 26 | T113: 市文旅局 | U113: 黄涛 | V113: 13339922388
A114: 102 | B114: 保安镇 | C114: 高溪村 | D114: 保安镇高溪村蔬菜瓜果基地 | E114: 产业发展 | F114: 生产项目 | G114: 种植业基地 | H114: 新建稻虾养殖30亩，露天蔬菜种植50亩沟渠改造200米，蓄水池建设一处，安装大棚滴浇灌系统； | I114: 26 | J114: 2025 | K114: 否 | L114: 是 | M114: 否 | N114: 是 | O114: 是 | P114: 土地流转、就业务工 | Q114: 增加村集体收入2万 | R114: 215 | S114: 5 | T114: 市商务局 | U114: 姜才广 | V114: 13995975364
A115: 103 | B115: 保安镇 | C115: 高溪村 | D115: 保安镇高溪村绿色生态基地建设产业发展 | E115: 产业发展 | F115: 生产项目 | G115: 养殖业基地 | H115: 面积300平方牛栏设施，散养黄牛40-50头 | I115: 26 | J115: 2025 | K115: 否 | L115: 是 | M115: 否 | N115: 是 | O115: 是 | P115: 土地流转、就业务工 | Q115: 增加村集体收入2万 | R115: 147 | S115: 13 | T115: 市农业农村局 | U115: 姜才广 | V115: 13995975364
A116: 小计 | C116: 8 | I116: =SUM(I105:I115) -> 833 | R116: =SUM(R105:R115) -> 8752 | S116: =SUM(S105:S115) -> 2319
A117: 104 | B117: 罗家桥街道 | C117: 两塘村 | D117: 大冶市罗家桥街道两塘村蔬菜大棚产业项目 | E117: 产业发展 | F117: 新型农村集体经济发展项目 | G117: 新型农村集体经济发展项目 | H117: 新建蔬菜大棚25亩，配套产业管理用房和完善排水灌溉设施等 | I117: 80 | J117: 2025 | K117: 否 | L117: 是 | M117: 否 | N117: 是 | O117: 是 | P117: 通过带动务工和土地流转方式，实现脱贫户及村民增加经济收入 | Q117: 预期收益10年，预计每年增加村集体经济收入约5万元 | R117: 1125 | S117: 113 | T117: 市委组织部、市财政局、市农业农村局 | U117: 陈小平 | V117: 13812123586
A118: 小计 | C118: 9 | I118: =I117 -> 80 | R118: =R117 -> 1125 | S118: =S117 -> 113
A119: 105 | B119: 还地桥镇 | C119: 黄岗村 | D119: 还地桥镇黄岗村水产产业基地项目 | E119: 产业发展 | F119: 新型农村集体经济发展项目 | G119: 新型农村集体经济发展项目 | H119: 1.新建冻库60立方;2.广场场地300平方米、砌挡土墙300立方; 2.完善厂房、农副产品加工机器及相关配套设施。 | I119: 60 | J119: 2025 | K119: 否 | L119: 是 | M119: 否 | N119: 是 | O119: 是 | P119: 带动务工和土地流转方式、农副产品销售，实现脱贫户及村民增入 | Q119: 预期收益20年，预计每年增加村集体经济收入约10万元 | R119: 2238 | S119: 96 | T119: 市委组织部、市财政局、市农业农村局 | U119: 熊新发 | V119: 13597650322
A120: 小计 | C120: 10 | I120: =I119 -> 60 | R120: =R119 -> 2238 | S120: =S119 -> 96
A121: 106 | B121: 陈贵镇 | C121: 洋塘村 | D121: 陈贵镇洋塘村新型大棚芦笋种植基地 | E121: 产业发展 | F121: 新型农村集体经济发展项目 | G121: 新型农村集体经济发展项目 | H121: 平整土地20亩、新建大棚10亩、 修建沟、渠、路及灌溉设施设备 | I121: 60 | J121: 2025 | K121: 否 | L121: 是 | M121: 否 | N121: 是 | O121: 是 | P121: 土地流转、村民务工40人(脱贫户6户）。 | Q121: 预期收益10年，预计每年增加村集体经济收入约5-6万元 | R121: 2478 | S121: 40 | T121: 市委组织部、市财政局、市农业农村局 | U121: 王忠庆 | V121: 13872112039
A122: 小计 | C122: 11 | I122: =I121 -> 60 | R122: =R121 -> 2478 | S122: =S121 -> 40
A123: 107 | B123: 金湖街道 | C123: 石任村 | D123: 大冶市金湖街道石任村集体经济产业园 | E123: 产业发展 | F123: 新型农村集体经济发展项目 | G123: 新型农村集体经济发展项目 | H123: 1.打造精品粮油产区、优质稻香米，精品菜籽油，纯粮酒共计250亩，稻虾种养15亩、果蔬采摘园100亩,共享菜园10亩。2.配套打造亲子体验区：亲子游玩区水域面积49亩。3.配套农业休闲观光设施建设。 | I123: 80 | J123: 2025 | K123: 否 | L123: 是 | M123: 否 | N123: 是 | O123: 是 | P123: 土地流转319.86亩，每亩每年260元，务工就业带动26人增收 | Q123: 预期收益10年，预计每年增加村集体经济收入约5万元 | R123: 1255 | S123: 151 | T123: 市委组织部、市财政局、市农业农村局 | U123: 石永强 | V123: 15871146888
A124: 108 | B124: 金湖街道 | C124: 大泉村 | D124: 金湖街道大泉村水果种植项目 | E124: 产业发展 | F124: 生产项目 | G124: 种植业基地 | H124: 建设大棚20个25亩，排水沟300米，滴灌，土地平整、围栏、监控，蓄水池水泵；栽种水果果苗 | I124: 78 | J124: 2025 | K124: 否 | L124: 是 | M124: 否 | N124: 是 | O124: 是 | P124: 土地流转、就业务工 | Q124: 流转52户土地80亩，每亩流转收益240元，村集体年增收5万元，带动脱贫户5人就业增收3600元 | R124: 82 | S124: 30 | T124: 市文旅局 | U124: 彭达军 | V124: 15972520899
A125: 109 | B125: 金湖街道 | C125: 平原村 | D125: 金湖街道平原村四季水果生态园 | E125: 产业发展 | F125: 生产项目 | G125: 种植业基地 | H125: 新建11个钢结构连栋大棚，总计8亩， 简易遮雨棚20亩 | I125: 70 | J125: 2025 | K125: 否 | L125: 是 | M125: 否 | N125: 是 | O125: 是 | P125: 土地流转、就业务工 | Q125: 预期可增加村级集体经济收入12万元，同时，带动8户脱贫户、一般农12户，每年每户可增收5000元 | R125: 20 | S125: 10 | T125: 市文旅局 | U125: 胡海雄 | V125: 13995992333
A126: 110 | B126: 金湖街道 | C126: 黄坪山村 | D126: 金湖街道黄坪山村野生映山红观赏步道及观景平台建设项目 | E126: 产业发展 | F126: 生产项目 | G126: 休闲农业与乡村旅游 | H126: 黄坪山村凤头山野生映山红观赏步道400米,观景平台总面积200平方米 | I126: 80 | J126: 2025 | K126: 否 | L126: 是 | M126: 否 | N126: 是 | O126: 是 | P126: 改善村居环境及村民生产生活条件 | Q126: 改善107户425人居住环境，提高村民生产生活条件 | R126: 425 | S126: 9 | T126: 市文旅局 | U126: 黄学明 | V126: 17371767836
A127: 小计 | C127: 12 | I127: =SUM(I123:I126) -> 308 | R127: =SUM(R123:R126) -> 1782 | S127: =SUM(S123:S126) -> 200
A128: 111 | B128: 东风农场管理区 | C128: 走马洲村 | D128: 大冶市东风农场管理区走马洲村特种水产养殖基地项目 | E128: 产业发展 | F128: 新型农村集体经济发展项目 | G128: 新型农村集体经济发展项目 | H128: 1、改造鱼池35亩（其中精养池6亩*2个，生态池23亩*1个)；2、硬化2条产业路共计875平方米，建设温棚8500平方米、基地围栏700米；3、采购直径10M陆基生态养殖桶4个、生产用房（集装箱）3个、监控设备12套。 | I128: 68 | J128: 2025 | K128: 否 | L128: 是 | M128: 否 | N128: 是 | O128: 是 | P128: 带动务工和“名特优”水产养殖技术推广，实现脱贫户及村民增加经济收入 | Q128: 预期收益10年，预计每年增加村集体经济收入约6万元 | R128: 438 | S128: 15 | T128: 市委组织部、市财政局、市农业农村局 | U128: 万建雄 | V128: 18271668687
A129: 小计 | C129: 13 | I129: =I128 -> 68 | R129: =R128 -> 438 | S129: =S128 -> 15
A130: 112 | B130: 汪仁镇 | C130: 柏树下村 | D130: 汪仁镇柏树下村种养殖基地 | E130: 产业发展 | F130: 新型农村集体经济发展项目 | G130: 新型农村集体经济发展项目 | H130: 莲子龙虾套养基地：对30亩水田进行蓄水，并利用机械进行荒草碎片，蓄水烂肥；购买莲子秧苗和龙虾苗，进行种放养等。 蔬菜大棚种植基地：进行土地平整；新建大棚4个，灌溉设施铺设、蔬菜种植等。 | I130: 62 | J130: 2025 | K130: 否 | L130: 是 | M130: 否 | N130: 是 | O130: 是 | P130: 通过带动务工和土地流转方式，实现脱贫户及村民增加经济收入。 | Q130: 预计收益10年，预计增加村集体经济收入约6万元，后逐年增加 | R130: 1300 | S130: 60 | T130: 市委组织部、市财政局、市农业农村局 | U130: 曹海军 | V130: 19986205685
A131: 113 | B131: 开铁区 | C131: 寄递物流村 | D131: 开铁区农村寄递物流网点提档升级项目 | E131: 乡村建设行动 | F131: 农村公共服务 | G131: 其他 | H131: 开铁区21个农村寄递物流村级服务网点提档升级。 | I131: 16.8 | J131: 2025 | K131: 否 | L131: 否 | M131: 否 | N131: 否 | O131: 否 | P131: 帮助农业企业和农户农产品出村进城，促进农村商贸流通 | Q131: 对农村寄递物流村级服务网点进行提档升级 | R131: 62313 | S131: 60704 | T131: 区农业农村局 | U131: 段旭辰 | V131: 6396006
A132: 114 | B132: 开铁区 | D132: 开铁区人居环境整治项目 | E132: 乡村建设 | F132: 人居环境整治 | G132: 村容村貌提升 | H132: 活动广场整治清理，村庄内的生活垃圾、建筑垃圾、沟渠垃圾卫生死角改善，落实“门前三包”、清理“三堆两垛”、拆除旱厕、危房等 | I132: 1800 | J132: 2025 | K132: 否 | L132: 否 | M132: 否 | N132: 否 | O132: 否 | P132: 改善人居环境；提升村容村貌 | Q132: 改善群众人居生活环境、建设宜居宜业和美乡村 | R132: 12682 | S132: 7660 | T132: 区农业农村局 | U132: 高峰 | V132: 6398094
A133: 115 | B133: 汪仁镇 | C133: 黄荆头村王叶村 磊山村 王贵村 | D133: 汪仁镇民生实事工程项目 | E133: 乡村建设行动 | F133: 农村公共服务 | G133: 公共照明设施 | H133: 黄荆头村、王叶村、磊山村、王贵村等村行政村安装200盏太阳能路灯。 | I133: 40 | J133: 2025 | K133: 否 | L133: 否 | M133: 否 | N133: 否 | O133: 否 | P133: 改善群众生活及出行条件 | Q133: 改善群众生活及出行条件 | R133: 2300 | S133: 2300 | T133: 汪仁镇 | U133: 汪志刚 | V133: 13886468825
A134: 116 | B134: 汪仁镇 | C134: 沿湖村 | D134: 汪仁镇沿湖村产业园道路提升项目 | E134: 乡村建设行动 | F134: 农村基础设施 （含产业配套基础设施） | G134: 产业路 | H134: 沿湖村主干道进入产业园长900米，宽5.5米的道路进行硬化 | I134: 25 | J134: 2025 | K134: 否 | L134: 否 | M134: 否 | N134: 否 | O134: 否 | P134: 改善人居环境，提升村容村貌 | Q134: 改善群众人居生活环境 | R134: 3000 | S134: 2000 | T134: 沿湖村村委会 | U134: 吴礼风 | V134: 13367142836
A135: 117 | B135: 汪仁镇 | C135: 王叶村 | D135: 汪仁镇王叶村道路硬化项目 | E135: 乡村建设行动 | F135: 农村基础设施 （含产业配套基础设施） | G135: 产业路 | H135: 一是对村内道路破损路面约1000平方米进行硬化（包含破损路面开挖清理运输，混凝土填充）；二是对150米排水渠进行修缮（包含水渠淤泥清理、混凝土浇灌、护砌）。 | I135: 27.5 | J135: 2025 | K135: 否 | L135: 否 | M135: 否 | N135: 否 | O135: 否 | P135: 改善人居环境，提升村容村貌 | Q135: 改善群众人居生活环境 | R135: 1600 | S135: 1200 | T135: 汪仁镇王叶村村委会 | U135: 卫军 | V135: 13597686881
A136: 118 | B136: 金山街道 | C136: 鹏程村 | D136: 金山街道鹏程村人居环境整治项目 | E136: 乡村建设行动 | F136: 人居环境整治 | G136: 村容村貌提升 | H136: 自来水管网改造升级 | I136: 20 | J136: 2025 | K136: 否 | L136: 否 | M136: 否 | N136: 否 | O136: 否 | P136: 改善人居环境，提升村容村貌 | Q136: 改善群众人居生活环境 | R136: 400 | S136: 400 | T136: 金山街道鹏程村 | U136: 雷海洋 | V136: 15897795620
A137: 119 | B137: 金山街道 | C137: 张冲村 | D137: 金山街道张冲村基础设施建设项目 | E137: 乡村建设行动 | F137: 人居环境整治 | G137: 村容村貌提升 | H137: 张冲村黄应仕大屋湾排洪港沿岸杂树清除，港底清淤、港边护坡 | I137: 25 | J137: 2025 | K137: 否 | L137: 是 | M137: 否 | N137: 否 | O137: 否 | P137: 改善人居环境，提升村容村貌 | Q137: 改善群众人居生活环境 | R137: 600 | S137: 400 | T137: 金山街道张冲村 | U137: 黄翔 | V137: 13451050510
A138: 小计 | C138: 14 | I138: =SUM(I130:I137) -> 2016.3 | R138: =SUM(R130:R137) -> 84195 | S138: =SUM(S130:S137) -> 74724
A139: 120 | B139: 各乡镇 | D139: “五大产业链”奖补项目（水产产业链） | E139: 产业发展 | F139: 生产项目 | G139: 水产养殖业发展 | H139: 对水产产业链项目给予奖补 | I139: 1000 | J139: 2025 | K139: 否 | L139: 是 | M139: 否 | N139: 是 | O139: 是 | P139: 发展生产带动务工就业 | Q139: 促进水产产业链发展 | R139: 2390 | S139: 190 | T139: 市农业农村局 | U139: 张兆刚 | V139: 19971224799
A140: 121 | B140: 东风农场 | C140: 东风村 | D140: 水产产业链项目 （湖北富渔外塘示范养殖基地建设） | E140: 产业发展 | F140: 生产项目 | G140: 水产养殖业发展 | H140: 对水产产业链项目给予奖补 | I140: 138 | J140: 2024-2025 | K140: 否 | L140: 是 | M140: 否 | N140: 是 | O140: 否 | P140: 发展生产，带动务工就业 | Q140: 促进水产产业链发展 | R140: 50 | S140: 50 | T140: 市农业农村 局 | U140: 吴清明 | V140: 13972792168
A141: 122 | B141: 金湖 | C141: 程湾村 | D141: 水产产业链项目 （大冶市鑫垸生态甲鱼养殖基地建设） | E141: 产业发展 | F141: 生产项目 | G141: 水产养殖业发展 | H141: 对水产产业链项目给予奖补 | I141: 151 | J141: 2024-2025 | K141: 否 | L141: 是 | M141: 否 | N141: 是 | O141: 否 | P141: 发展生产，带动务工就业 | Q141: 促进水产产业链发展 | R141: 50 | S141: 50 | T141: 市农业农村 局 | U141: 吴清明 | V141: 13972792168
A142: 123 | B142: 还地桥 | C142: 黄岗村 | D142: 水产产业链项目 （湖北三山湖生态甲鱼养殖基地建设） | E142: 产业发展 | F142: 生产项目 | G142: 水产养殖业发展 | H142: 对水产产业链项目给予奖补 | I142: 111 | J142: 2024-2025 | K142: 否 | L142: 是 | M142: 否 | N142: 是 | O142: 否 | P142: 发展生产，带动务工就业 | Q142: 促进水产产业链发展 | R142: 90 | S142: 90 | T142: 市农业农村 局 | U142: 吴清明 | V142: 13972792168
A143: 124 | B143: 各乡镇 | D143: “五大产业链”奖补项目（蔬菜产业链） | E143: 产业发展 | F143: 生产项目 | G143: 种植业基地 | H143: 对蔬菜产业链项目给予奖补 | I143: 1000 | J143: 2025 | K143: 否 | L143: 是 | M143: 否 | N143: 是 | O143: 是 | P143: 发展生产带动务工就业 | Q143: 促进蔬菜产业链发展 | R143: 5620 | S143: 462 | T143: 市商务局 | U143: 罗旭 | V143: 13972798923
A144: 125 | B144: 各乡镇 | D144: “五大产业链”奖补项目（水果产业链奖补） | E144: 产业发展 | F144: 生产项目 | G144: 种植业基地 | H144: 对水果产业链项目给予奖补 | I144: 1000 | J144: 2025 | K144: 否 | L144: 是 | M144: 否 | N144: 是 | O144: 是 | P144: 发展生产带动务工就业 | Q144: 促进水果产业链发展 | R144: 3520 | S144: 892 | T144: 大冶市文旅局 | U144: 黄传东 | V144: 15374513006
A145: 126 | B145: 各乡镇 | D145: “五大产业链”奖补项目（水果产业链） | E145: 产业发展 | F145: 生产项目 | G145: 种植业基地 | H145: 对水果产业链项目给予奖补 | I145: 290.63 | J145: 2025 | K145: 否 | L145: 是 | M145: 否 | N145: 是 | O145: 是 | P145: 发展生产带动务工就业 | Q145: 促进水果产业链发展 | R145: 2310 | S145: 578 | T145: 大冶市文旅局 | U145: 黄传东 | V145: 15374513006
A146: 127 | B146: 各乡镇 | D146: “五大产业链”奖补项目（中药材产业链） | E146: 产业发展 | F146: 生产项目 | G146: 种植业基地 | H146: 对中药材产业链项目给予奖补 | I146: 700 | J146: 2025 | K146: 否 | L146: 是 | M146: 否 | N146: 是 | O146: 是 | P146: 发展生产带动务工就业 | Q146: 促进中药材产业链发展 | R146: 2401 | S146: 187 | T146: 市卫健局 | U146: 熊旭东 | V146: 18071487036
A147: 128 | B147: 各乡镇 | D147: “雨露计划”教育补助 | E147: 巩固三保障成果 | F147: 教育 | G147: 享受“雨露计划”职业教育补助 | H147: 就读中、高职的脱贫户、监测户家庭学生每学期补助1500元 | I147: 190 | J147: 2025 | K147: 是 | L147: 否 | M147: 否 | N147: 否 | O147: 否 | P147: 帮助解决脱贫户、监测户家庭子女就学困难 | Q147: 符合条件对象应补尽补 | R147: 1187 | S147: 1187 | T147: 市农业农村局 | U147: 王臻 | V147: 13339906085
A148: 129 | B148: 各乡镇 | D148: 农村兜底保障 | E148: 巩固三保障成果 | F148: 综合保障 | G148: 享受农村居民最低生活保障 | H148: 脱贫人口、低保人口、监测对象落实财政兜底保障 | I148: 6808.05 | J148: 2025 | K148: 是 | L148: 否 | M148: 否 | N148: 否 | O148: 否 | P148: 保障困难群众生活 | Q148: 解决脱贫户生活问题 | R148: 14140 | S148: 14140 | T148: 市民政局 | U148: 姚昭 | V148: 15826962691
A149: 130 | B149: 各乡镇 | D149: 脱贫人口（监测对象）“三业”奖补 | E149: 就业项目 | F149: 务工补助 | G149: 生产奖补、劳务补助等 | H149: 对发展产业、自主创业、积极就业的脱贫和监测户每户给予1000元奖励 | I149: 375 | J149: 2025 | K149: 否 | L149: 否 | M149: 否 | N149: 否 | O149: 否 | P149: 激发脱贫户和监测户自主就业的内生动力，增加收入 | Q149: 符合条件对象应奖尽奖 | R149: 3750 | S149: 3750 | T149: 市农业农村局 | U149: 刘风云 | V149: 18772268323
A150: 131 | B150: 各乡镇 | D150: 脱贫户小额信贷贷款贴息 | E150: 产业发展 | F150: 金融保险配套项目 | G150: 小额贷款贴息 | H150: 对按期还款的脱贫户小额贷款给予贴息 | I150: 80 | J150: 2025 | K150: 否 | L150: 否 | M150: 否 | N150: 否 | O150: 否 | P150: 帮助脱贫户和监测户解决产业发展资金困难 | Q150: 对符合条件贷款对象应补尽补 | R150: 560 | S150: 560 | T150: 市农业农村局 | U150: 刘风云 | V150: 18772268323
A151: 132 | B151: 各乡镇 | D151: 新型经营主体产业发展贷款贴息 | E151: 产业发展 | F151: 金融保险配套项目 | G151: 新型经营主体贷款贴息 | H151: 对新型经营主体发展产业贷款给予贴息 | I151: 117 | J151: 2025 | K151: 否 | L151: 否 | M151: 否 | N151: 否 | O151: 否 | P151: 新型农业经营主体带动农户（脱贫户、监测户）土地流转、务工就业增收 | Q151: 帮助农业新型经营主体降低融资成本，促进企业发展壮大 | R151: 6500 | S151: 850 | T151: 市农业农村局 | U151: 陈丽梅 | V151: 13971784699
A152: 133 | C152: 各村 | D152: 巩固脱贫成果（特色农业产业发展奖补） | E152: 就业项目 | F152: 创业 | G152: 创业奖补 | H152: 鼓励脱贫户（监测户）自主创业 | I152: 79.8126 | J152: 2024-2025 | K152: 否 | L152: 是 | M152: 否 | N152: 否 | O152: 否 | P152: 鼓励脱贫户（监测户）自主创业 | Q152: 帮助脱贫户（监测户）提高造血能力，实现致富增收，巩固脱贫攻坚成果 | R152: 1244 | S152: 422 | T152: 市农业农村局 | U152: 马小芳 | V152: 13437297625
A153: 134 | B153: 各乡镇 | D153: 新型经营主体产业发展贷款贴息（第二批） | E153: 产业发展 | F153: 金融保险配套项目 | G153: 新型经营主体贷款贴息 | H153: 对新型经营主体发展产业贷款给予贴息 | I153: 51 | J153: 2025 | K153: 否 | L153: 否 | M153: 否 | N153: 否 | O153: 否 | P153: 新型农业经营主体带动农户（脱贫户、监测户）就业增收 | Q153: 帮助农业新型经营主体降低融资成本，促进企业发展壮大 | R153: 3105 | S153: 411 | T153: 市农业农村局 | U153: 陈丽梅 | V153: 13971784699
A154: 135 | B154: 各乡镇 | D154: 农业产业化奖补（畜牧业能力提升） | E154: 产业发展 | F154: 生产项目 | G154: 养殖业基地 | H154: 支持畜牧业能力提升，提高农业产业化水平 | I154: 69.66 | J154: 2024-2025 | K154: 否 | L154: 否 | M154: 否 | N154: 否 | O154: 否 | P154: 带动农户生产和就业，增加农户收入 | Q154: 提升畜牧产业化水平 | R154: 110 | S154: 20 | T154: 市农业农村局 | U154: 陈丽梅 | V154: 13971784699
A155: 136 | B155: 各乡镇 | D155: 农业产业化奖补（加工提升） | E155: 产业发展 | F155: 加工流通项目 | G155: 加工业 | H155: 支持农产品加工提升，提高农业产业化水平 | I155: 300.61 | J155: 2024-2025 | K155: 否 | L155: 否 | M155: 否 | N155: 否 | O155: 否 | P155: 带动农户生产和就业，增加农户收入 | Q155: 提升农业产业化水平，带动农户增收 | R155: 400 | S155: 82 | T155: 市农业农村局 | U155: 陈丽梅 | V155: 13971784699
A156: 137 | B156: 各乡镇 | D156: 农业产业化奖补（三产融合） | E156: 产业发展 | F156: 生产项目 | G156: 休闲农业与乡村旅游 | H156: 支持三产融合发展，提高农业产业化水平 | I156: 124.77 | J156: 2024-2025 | K156: 否 | L156: 否 | M156: 否 | N156: 否 | O156: 否 | P156: 带动农户生产和就业，增加农户收入 | Q156: 提升农业产业化水平，带动农户增收 | R156: 200 | S156: 40 | T156: 市农业农村局 | U156: 陈丽梅 | V156: 13971784699
A157: 138 | B157: 各乡镇 | D157: 农业产业化奖补（智慧农业） | E157: 产业发展 | F157: 产业服务支撑项目 | G157: 智慧农业 | H157: 支持智慧农业建设，提高农业产业化水平 | I157: 10.52 | J157: 2024-2025 | K157: 否 | L157: 否 | M157: 否 | N157: 否 | O157: 否 | P157: 带动农户生产和就业，增加农户收入 | Q157: 提升农业产业化水平，带动农户增收 | R157: 20 | S157: 5 | T157: 市农业农村局 | U157: 陈丽梅 | V157: 13971784699
A158: 139 | B158: 各乡镇 | D158: 大冶市老区帮扶项目 | E158: 乡村建设行动 | F158: 农村公共服务 | G158: 其他 | H158: 老区乡村基础设施改善和产业发展帮扶 | I158: 35 | J158: 2025 | K158: 否 | L158: 是 | M158: 否 | N158: 否 | O158: 否 | P158: 改善老区山区村民生产生活条件 | Q158: 帮扶山区老区建设 | R158: 2140 | S158: 2140 | T158: 市老区促进委员会 | U158: 陈耀华 | V158: 13986579482
A159: 140 | B159: 各乡镇 | D159: 大冶市农村寄递物流建设 | E159: 产业发展 | F159: 加工流通项目 | G159: 市场建设和农村物流 | H159: 提升村级网点建设标准 | I159: 120 | J159: 2025 | K159: 否 | L159: 是 | M159: 否 | N159: 否 | O159: 否 | P159: 帮助促进农村商贸流通 | Q159: 提升农村寄递物流效率和水平 | R159: 140000 | S159: 12000 | T159: 市交通运输局 | U159: 柯俊卿 | V159: 13197000050
A160: 141 | B160: 全市各相关乡镇 | C160: 全市各相关村 | D160: 2025年十大民生项目农村路灯建设 | E160: 乡村建设行动 | F160: 农村公共服务 | G160: 公共照明设施 | H160: 安装农村太阳能路灯240盏,每盏 2500元。 | I160: 60 | J160: 2025 | K160: 否 | L160: 是 | M160: 否 | N160: 否 | O160: 否 | P160: 改善农村基础设施，方便村民生产生活 | Q160: 改善农村生产生活环境 | R160: 3000 | S160: 3000 | T160: 市农业农村局 | U160: 曹文 | V160: 15172026861
A161: 142 | B161: 大冶市 | C161: 部分村 | D161: 农村人居环境整治（农村厕所改建和污水处理） | E161: 乡村建设 | F161: 人居环境整治 | G161: 村容村貌提升 | H161: 新（改）建公厕、户厕等进行奖补及农村污水处理建设 | I161: 236.38 | J161: 2024-2025 | K161: 否 | L161: 是 | M161: 否 | N161: 否 | O161: 否 | P161: 改善村民居住环境 | Q161: 建改农村户厕所300个、公厕40座 | R161: 1000 | S161: 800 | T161: 市农业农村局 | U161: 余文瑞 | V161: 13700723027
A162: 143 | B162: 大冶市 | C162: 部分村 | D162: 大冶市农村厕所改建项目 | E162: 乡村建设 | F162: 人居环境整治 | G162: 村容村貌提升 | H162: 对公厕、户厕进行奖补，推进村湾污水集中处理 | I162: 300 | J162: 2025 | K162: 否 | L162: 是 | M162: 否 | N162: 否 | O162: 否 | P162: 提高村民居住条件，改善村庄环境 | Q162: 建改完成农村户厕1000个、公厕37座建改 | R162: 2000 | S162: 1500 | T162: 市农业农村局 | U162: 余文瑞 | V162: 13700723027
A163: 144 | B163: 大冶市 | D163: 农村饮水安全项目 | E163: 乡村建设行动 | F163: 农村基础设施 | G163: 农村供水保障设施建设 | H163: 巩固提升安全饮水质量 | I163: 200 | J163: 2024-2025 | K163: 是 | L163: 否 | M163: 否 | N163: 否 | O163: 否 | P163: 改善村民饮水条件，保障饮水安全 | Q163: 提升小型集中式供水工程供水能力 | R163: 32000 | S163: 7000 | T163: 市水利 和湖泊局 | U163: 黄金湖 | V163: 13617141226
A164: 145 | B164: 各相关乡镇 | D164: 茶产业链建设（2022年度新建茶园基地奖补） | E164: 产业发展 | F164: 生产项目 | G164: 种植业基地 | H164: 对2022年新建茶园基地给予第三年奖补 | I164: 197.1305 | J164: 2025 | K164: 否 | L164: 是 | M164: 是 | N164: 是 | O164: 是 | P164: 发展生产，带动务工就业 | Q164: 促进茶产业链发展 | R164: 15649 | S164: 2590 | T164: 市农业农村局（市茶办） | U164: 柯晓畅 | V164: 18986591632
A165: 146 | B165: 各相关乡镇 | D165: 茶产业链建设（2023年度新建茶园基地和喷灌建设奖补） | E165: 产业发展 | F165: 生产项目 | G165: 种植业基地 | H165: 对2023年新建茶园基地给予第一年奖补及喷灌设施建设奖补 | I165: 188.3508 | J165: 2025 | K165: 否 | L165: 是 | M165: 是 | N165: 是 | O165: 是 | P165: 发展生产，带动务工就业 | Q165: 促进茶产业链发展 | R165: 5568 | S165: 1785 | T165: 市农业农村局（市茶办） | U165: 柯晓畅 | V165: 18986591632
A166: 147 | B166: 各相关乡镇 | D166: 茶产业链建设（茶园抗旱机井奖补） | E166: 乡村建设行动 | F166: 农村基础设施 | G166: 其他 | H166: 对茶园基地抗旱机井建设给予奖补 | I166: 81.546094 | J166: 2025 | K166: 否 | L166: 是 | M166: 是 | N166: 是 | O166: 是 | P166: 发展生产，带动务工就业 | Q166: 促进茶产业链发展 | R166: =478*3 -> 1434 | S166: 478 | T166: 市农业农村局（市茶办） | U166: 柯晓畅 | V166: 18986591632
A167: 148 | B167: 各相关乡镇 | D167: 大冶市茶产业链项目（茶园配套设施建设） | E167: 乡村建设行动 | F167: 农村基础设施 | G167: 其他 | H167: 对茶园配套基础设施给予奖补 | I167: 54 | J167: 2025 | K167: 否 | L167: 是 | M167: 是 | N167: 是 | O167: 是 | P167: 带动生产，务工就业 | Q167: 促进茶产业链发展 | R167: 367 | S167: 234 | T167: 市农业农村局 （市茶办） | U167: 柯晓畅 | V167: 18986591632
A168: 149 | B168: 各相关乡镇 | D168: 茶产业链项目（2023年度茶园基地奖补） | E168: 产业发展 | F168: 生产项目 | G168: 种植业基地 | H168: 对2023年度新建茶园基地（第二年、第三年度）给予奖补 | I168: 105.2 | J168: 2025 | K168: 否 | L168: 是 | M168: 是 | N168: 是 | O168: 是 | P168: 带动生产，务工就业 | Q168: 促进茶产业链发展 | R168: 5568 | S168: 1785 | T168: 市农业农村局 （市茶办） | U168: 柯晓畅 | V168: 18986591632
A169: 150 | B169: 各相关乡镇 | D169: 茶产业链项目（2024年度茶园基地奖补） | E169: 产业发展 | F169: 生产项目 | G169: 种植业基地 | H169: 对2024年度新建茶园基地（第一年度）和喷灌设施等给予奖补 | I169: 315.8 | J169: 2025 | K169: 否 | L169: 是 | M169: 是 | N169: 是 | O169: 是 | P169: 带动生产，务工就业 | Q169: 促进茶产业链发展 | R169: 3649 | S169: 590 | T169: 市农业农村局 （市茶办） | U169: 柯晓畅 | V169: 18986591632
A170: 151 | B170: 各相关乡镇 | D170: 茶产业链建设项目（“殷祖白茶”区域公用品牌建设） | E170: 产业发展 | F170: 加工流通项目 | G170: 品牌打造和展销平台 | H170: 打造和推广应用“殷祖白茶”区域公用品牌 | I170: 12.44 | J170: 2025 | K170: 否 | L170: 是 | M170: 否 | N170: 是 | O170: 是 | P170: 发展生产，带动务工就业 | Q170: 促进茶产业链发展 | R170: 2052 | S170: 480 | T170: 市农业农村局 | U170: 柯晓畅 | V170: 18986591632
A171: 152 | B171: 各乡镇 | D171: 大冶市农村人居环境整治项目 | E171: 乡村建设行动 | F171: 人居环境整治 | G171: 村容村貌提升 | H171: 村庄环境整治和基础设施完善 | I171: 8580 | J171: 2025 | K171: 否 | L171: 是 | M171: 否 | N171: 否 | O171: 否 | P171: 改善村民居住环境，提高群众生产生活质量 | Q171: 完成涉农社区人居环境整治工作 | R171: 150000 | S171: 150000 | T171: 市农业农村局 | U171: 余文瑞 | V171: 13707230027
A172: 小计 | C172: 15 | I172: =SUM(I139:I171) -> 23082.89999 | R172: =SUM(R139:R171) -> 262074 | S172: =SUM(S139:S171) -> 208348
